Cogmind - Beta 15 @@@ ROGUE MODE // 2025.08.20 @ 22:28:22 Player: Naughtyusername Result: Escaped! Performance ------------- Evolutions (9) 4500 Regions Visited (32) 6400 Robots Destroyed (397) 1985 Value Destroyed (24919) 24919 Prototype IDs (366) 7320 Alien Tech Used (4) 800 Bonus (36714) 36714 TOTAL SCORE: 82638 Bonus ------- High Alert Combat Kills 6108 Follower Combat Kills 1855 Met Imprinter 300 Met Zhirov 300 Met Warlord at Base 500 MAIN.C Attacked Warlord 500 Warlord Defense Kills 134 Built Enhanced Grunts 300 Met R17 at Cetus 500 Found Hidden Lab 3000 Met R17 at Research 2000 Met Warlord at Research 2000 Scanned by Researcher 500 Pursued by Intercept 1000 Acquired SGEMP 2000 Delivered SGEMP 2000 Destroyed MAIN.C Guards 500 Met MAIN.C 5000 Destroyed MAIN.C Shell 5000 Zhirov Destroyed MAIN.C 3000 Met Warlord at Command 2000 Win 3000 Friendly Fire -4783 Cogmind --------- Core Integrity 1600/1600 Matter 690/800 Energy 1078/1100 System Corruption 0% Temperature Cool (16) Movement Treading (150) Location To Epsilon Eridani Parts ------- > --- POWER (3) -------- Singularity Reactor > --- PROPULSION (6) --- Biometal Medium Treads Advanced Heavy Siege Treads High-density Centrium Heavy Treads Experimental Biometal Medium Treads > --- UTILITY (10) ----- Advanced Heat Sink Huge Storage Unit Experimental Matter Compressor Experimental Targeting Computer Experimental Target Analyzer Experimental Core Analyzer Quantum Capacitor AEGIS Remote Shield Experimental System Purifier > --- WEAPON (6) ------- Enhanced Quantum Rifle Enhanced Nova Cannon Enhanced Nova Cannon Enhanced Nova Cannon Perforator > --- INVENTORY (25) --- Quantum Reactor Zero-point Reactor Vortex Chain Reactor Advanced Medium Treads Advanced Medium Treads Advanced Medium Treads Advanced Medium Treads Advanced Power Amplifier Experimental Cooling System Improved Energy Well (400) Experimental Energy Well (600) Experimental Matter Compressor (500) Experimental Targeting Computer Experimental Target Analyzer Advanced Particle Accelerator Advanced Weapon Cycler Thermal Barrier Experimental EM Shield Advanced Point Defense System Transdimensional Reconstructor Core Reset Matrix Warp Gun Enhanced Nova Cannon Peak State ------------ > --- POWER ------------ Light Antimatter Reactor Light Quantum Reactor Light Quantum Reactor > --- PROPULSION ------- Experimental Biometal Heavy Treads Enhanced Armored Heavy Treads Enhanced Armored Heavy Treads > --- UTILITY ---------- 2N-1CE's Frost Array Huge Storage Unit Long-range Sensor Array Experimental Targeting Computer Experimental Target Analyzer Experimental Core Analyzer Advanced Particle Accelerator Advanced Weapon Cycler Heavy Regenerative Plating > --- WEAPON ----------- Heavy Quantum Rifle Vortex Driver Enhanced Nova Cannon Compact Linear Accelerator Perforator > --- INVENTORY -------- Advanced Power Amplifier Experimental Cooling System Experimental Energy Well Experimental Matter Compressor Experimental Matter Compressor Experimental Targeting Computer Experimental Targeting Computer Quantum Capacitor Advanced Transmission Jammer Experimental ECM Suite Experimental EM Shield Advanced Point Defense System Transdimensional Reconstructor Core Regenerator Core Reset Matrix Hypervelocity EM Gauss Rifle Warp Gun Vortex Cannon Warp Cannon Plasma Cutter [Rating: 246] Favorites ----------- Power Quantum Reactor Engine Improved Deuterium Engine Power Core Nuclear Core Reactor Quantum Reactor Propulsion Centrium Heavy Treads Treads Centrium Heavy Treads Leg Carbon-fiber Leg Wheel Centrium Wheel Hover Unit Cooled Linear Gravjet Utility Huge Storage Unit Device Advanced Sensor Array Storage Huge Storage Unit Processor Advanced Targeting Computer Hackware Advanced Hacking Suite Protection Medium Regenerative Plating Weapon Advanced KE Penetrator Energy Gun Heavy Laser Energy Cannon Enhanced Nova Cannon Ballistic Gun Advanced KE Penetrator Ballistic Cannon Perforator Launcher Guided Micro-nuke Launcher Special Weapon Plasma Cutter Build | -11 -10 -10 -9 -9 -8 -7 -7 -7 -7 -6 -6 -6 -6 -6 -6 -5 -5 -5 -5 -4 -4 -4 -4 -4 -3 -3 -3 -3 -2 -2 -1 -1 ------- Run | Yrd Mat Min Mat Min Mat Fac Low Low Zio Pro Fac Ext Cet Arc Hub Fac Upp Upp Zhi Pro Fac Upp Upp War Pro Res Arm Lab Res Tes Acc Com Slots Evolved 18 | . . . 2 . 2 2 . . . . 2 . . . . 2 . . . . 2 . . . . 2 . . 2 . 2 . Power 2 | . . . . . . . . . . . 1 . . . . . . . . . . . . . . . . . . . 1 . Propulsion 4 | . . . 1 . . 1 . . . . . . . . . 2 . . . . . . . . . . . . . . . . Utility 8 | . . . . . 2 1 . . . . 1 . . . . . . . . . 2 . . . . 2 . . . . . . Weapon 4 | . . . 1 . . . . . . . . . . . . . . . . . . . . . . . . . 2 . 1 . Parts Attached 299 | 7 1 . 10 . 20 14 6 5 2 1 12 35 16 . 2 9 2 1 3 1 7 . 4 10 1 11 12 3 31 22 9 42 Power 36 | 1 . . 1 . 2 2 . . . . 1 4 2 . . . . . . 1 1 . . 1 . . . . 10 2 3 5 Engine 6 | 1 . . 1 . 1 . . . . . . 3 . . . . . . . . . . . . . . . . . . . . Core 7 | . . . . . 1 2 . . . . 1 1 . . . . . . . 1 . . . . . . . . 1 . . . Reactor 23 | . . . . . . . . . . . . . 2 . . . . . . . 1 . . 1 . . . . 9 2 3 5 Propulsion 70 | 2 . . 1 . 8 6 1 1 . . 1 14 3 . . 2 . . . . . . . . . 3 4 . 4 3 . 17 Treads 34 | . . . . . . . . . . . . 5 3 . . 2 . . . . . . . . . 3 4 . 4 3 . 10 Leg 28 | 2 . . 1 . 8 6 1 1 . . 1 6 . . . . . . . . . . . . . . . . . . . 2 Wheel 7 | . . . . . . . . . . . . 3 . . . . . . . . . . . . . . . . . . . 4 Hover 1 | . . . . . . . . . . . . . . . . . . . . . . . . . . . . . . . . 1 Flight . | . . . . . . . . . . . . . . . . . . . . . . . . . . . . . . . . . Utility 113 | 2 1 . 1 . 8 3 4 1 1 . 6 9 6 . . 4 2 1 2 . 4 . 3 5 1 4 5 2 8 14 4 12 Device 55 | 1 . . 1 . 4 1 1 . . . 2 4 2 . . 1 1 1 1 . 1 . 3 2 1 1 5 1 2 8 4 7 Storage 10 | 1 1 . . . 1 2 . . . . . 1 1 . . . . . . . . . . 1 . . . . . 1 . 1 Processor 23 | . . . . . 1 . 1 1 1 . 3 2 . . . 1 1 . . . . . . 1 . 3 . . 3 2 . 3 Hackware 8 | . . . . . . . . . . . . . . . . 2 . . . . 3 . . . . . . . . 3 . . Protection 17 | . . . . . 2 . 2 . . . 1 2 3 . . . . . 1 . . . . 1 . . . 1 3 . . 1 Artifact . | . . . . . . . . . . . . . . . . . . . . . . . . . . . . . . . . . Weapon 80 | 2 . . 7 . 2 3 1 3 1 1 4 8 5 . 2 3 . . 1 . 2 . 1 4 . 4 3 1 9 3 2 8 Energy Gun 13 | 2 . . . . . . . . . . . 3 4 . . . . . . . . . . . . . . . 1 1 1 1 Energy Cannon 14 | . . . . . . . . . . 1 2 1 . . . . . . . . 1 . . 2 . . . 1 1 . . 5 Ballistic Gun 35 | . . . 7 . 2 2 . 2 1 . 2 3 1 . 1 2 . . . . 1 . 1 . . 1 3 . 6 . . . Ballistic Cannon 5 | . . . . . . . . . . . . . . . . 1 . . . . . . . . . . . . . 1 1 2 Launcher 10 | . . . . . . 1 1 . . . . 1 . . 1 . . . 1 . . . . . . 3 . . 1 1 . . Special Weapon 3 | . . . . . . . . 1 . . . . . . . . . . . . . . . 2 . . . . . . . . Impact Weapon . | . . . . . . . . . . . . . . . . . . . . . . . . . . . . . . . . . Slashing Weapon . | . . . . . . . . . . . . . . . . . . . . . . . . . . . . . . . . . Piercing Weapon . | . . . . . . . . . . . . . . . . . . . . . . . . . . . . . . . . . Special Melee Weapon . | . . . . . . . . . . . . . . . . . . . . . . . . . . . . . . . . . Unidentified Prototypes 68 | . . . . . . . . . . . 1 1 6 . . 2 . 2 3 . . 1 . 8 . 2 1 1 10 13 3 14 Corrupted Parts 5 | . . . . . . . . . . . . . 4 . 1 . . . . . . . . . . . . . . . . . System Corruption 20 | . . . . . . . . . . . . . 13 . 7 . . . . . . . . . . . . . . . . . Parts Lost 67 | . . . 1 . 5 . 3 4 . . 5 12 . . . . . 1 . . 2 . 2 . 1 . 3 . 12 5 3 8 Power 9 | . . . . . . . . . . . . 1 . . . . . . . . . . 1 . . . . . 1 2 2 2 Propulsion 15 | . . . . . 2 . . 2 . . 3 4 . . . . . . . . . . . . 1 . . . 1 . . 2 Utility 19 | . . . . . 2 . 3 . . . . 4 . . . . . . . . 1 . . . . . 3 . 4 . . 2 Weapon 24 | . . . 1 . 1 . . 2 . . 2 3 . . . . . 1 . . 1 . 1 . . . . . 6 3 1 2 Highest Loss Streak 8 | . . . 1 . 2 . 2 2 . . 4 5 . . . . . 1 . . 1 . 1 . 1 . 1 . 8 2 1 6 To Critical Strikes . | . . . . . . . . . . . . . . . . . . . . . . . . . . . . . . . . . Average Backups 21 | . 3 5 8 12 13 17 19 18 20 20 19 20 24 24 24 24 25 24 24 24 23 23 24 24 24 24 23 23 22 22 21 22 Power . | . 1 1 1 1 1 . 1 1 1 1 . . 2 2 2 1 1 1 . . . . . . 1 . . . . . . 2 Propulsion 1 | . . . 1 3 2 1 1 1 . . . 3 3 1 1 1 . . . . . . . . . . . 1 1 . . 2 Utility 12 | . 1 2 3 4 4 9 11 12 14 14 13 10 10 11 11 12 14 14 14 15 14 15 16 15 14 14 14 11 11 12 12 11 Weapon 5 | . 1 2 2 4 4 4 4 3 3 4 4 5 8 9 9 8 9 8 8 7 6 6 5 6 7 7 7 8 6 5 4 2 Tool/Special . | . . . . . . . . . . . . . . . . . . . . . . . . . . . . . . . . . Unused Backups 44 | . . . . 2 3 3 . . 3 . 5 1 6 . . 3 . 1 2 1 . . . 2 . . . 2 . 3 . 7 Power 8 | . . . . . 1 2 . . . . . . 2 . . 1 . . . . . . . . . . . . . . . 2 Propulsion 2 | . . . . . 1 . . . . . . . 1 . . . . . . . . . . . . . . . . . . . Utility 24 | . . . . 2 . 1 . . 3 . 5 1 3 . . 1 . . 1 . . . . 1 . . . . . 3 . 3 Weapon 8 | . . . . . 1 . . . . . . . . . . 1 . 1 1 1 . . . 1 . . . 2 . . . . Tool/Special 2 | . . . . . . . . . . . . . . . . . . . . . . . . . . . . . . . . 2 Average Slot Usage (%) 85 | . 100 100 94 100 99 99 99 97 100 100 91 96 93 86 86 83 82 81 67 82 82 83 77 78 73 81 79 79 81 71 75 78 Engine 1 | . 14 14 11 11 7 . . . . . . 5 3 . . . . . 2 5 1 . . 2 . . . . . . . . Core 2 | . . . . . 1 7 7 7 7 7 6 6 3 . . . . . . 1 5 5 . . . . . . . . . . Reactor 4 | . . . . . . . . . . . . . 4 13 13 11 11 11 8 3 3 5 5 5 5 4 4 4 6 7 11 7 Treads 10 | . . . . . . . . . . . . 8 20 13 13 18 17 17 17 17 15 15 15 15 10 15 14 14 12 13 12 14 Leg 8 | . 28 28 29 33 26 29 30 27 30 30 25 16 . . . . . . . . . . . . . . . . . . . . Device 11 | . 5 . 2 11 15 14 15 14 7 14 10 14 17 13 20 6 10 7 5 4 5 5 8 8 14 14 14 9 11 9 15 12 Storage 6 | . 22 28 19 11 9 7 7 7 7 7 6 6 7 13 6 5 5 5 5 5 5 5 5 5 5 4 4 4 4 4 4 7 Processor 12 | . . . . . 5 7 7 11 15 15 19 11 6 6 6 7 16 17 17 17 15 15 14 10 10 20 23 23 20 15 12 12 Hackware 1 | . . . . . . . . . . . . . . . . 6 . . . . 8 10 10 7 . . . . . 2 . . Protection 4 | . . . . . 5 7 6 3 7 . 1 5 7 6 6 6 . 2 5 5 5 4 1 6 10 6 4 8 5 4 2 3 Energy Gun 2 | . 28 28 2 . . . . . . . . 10 11 13 12 . . . . . . . . . . . . 3 1 . 6 3 Energy Cannon 3 | . . . . . . . . . . 5 5 5 6 6 6 . . . . . . 1 . . . . . 3 5 6 4 9 Ballistic Gun 10 | . . . 29 33 27 22 21 22 22 8 12 1 1 . . 14 17 16 . 13 14 10 14 14 9 12 13 6 8 4 . . Peak Build Rating 246 | 7 7 7 16 16 36 46 49 50 50 44 58 66 117 116 114 141 141 134 129 130 144 141 137 167 169 169 176 179 206 226 246 244 Average Rating 127 | 4 7 7 11 16 27 43 45 45 49 43 52 58 89 115 110 126 132 132 110 127 140 138 132 143 148 166 172 175 190 211 234 225 On Entrance 100 | . 7 7 7 16 16 35 45 46 48 48 44 43 64 116 110 114 141 132 134 126 129 141 141 135 167 145 168 167 179 202 222 236 Naked Turns . | . . . . . . . . . . . . . . . . . . . . . . . . . . . . . . . . . Heaviest Build 236 | 13 32 32 35 35 43 64 66 61 62 64 85 131 162 153 153 157 157 146 143 139 142 145 139 172 175 183 165 183 184 195 211 236 Greatest Support 255 | 20 20 20 35 35 51 66 67 64 62 62 62 100 160 160 160 240 240 240 240 240 240 240 240 240 240 230 235 225 255 255 245 245 Greatest Overweight (x) 72 | . 1 1 1 . 1 1 1 1 . 1 3 7 2 . . . . . . . . . . . 1 1 . . . . . 72 Average Overweight (x) . | . . 1 . . . . . . . . . 1 . . . . . . . . . . . . . . . . . . . 1 Largest Inventory Capacity 25 | 8 15 15 15 15 15 20 20 20 20 20 20 25 25 25 25 25 25 25 25 25 25 25 25 25 25 25 25 25 25 25 25 25 Average Capacity 22 | 7 12 15 15 15 15 19 20 20 20 20 20 21 25 25 25 25 25 25 25 25 25 25 25 25 25 25 25 25 25 25 25 25 Most Carried 25 | 1 5 6 12 15 15 20 20 20 20 20 20 25 25 25 25 25 25 25 25 25 25 25 25 25 25 25 25 25 25 25 25 25 Average Carried 21 | . 3 5 8 12 13 17 19 18 19 20 19 20 24 25 25 24 25 24 24 24 23 23 24 24 24 24 24 24 24 24 22 23 Final Capacity 25 | 8 15 15 15 15 15 20 20 20 20 20 20 25 25 25 25 25 25 25 25 25 25 25 25 25 25 25 25 25 25 25 25 25 Final Carried 25 | 1 5 5 12 13 13 20 20 20 20 20 20 25 25 25 25 25 25 24 24 25 23 24 24 25 25 25 25 25 24 25 24 24 Class Distribution -------------------- 26% | Scavenger-Gunner 23% | Scavenger-Tank 13% | Gunner 9% | Tank 7% | Executioner 3% | Hacker-Gunner 3% | Scavenger-Executioner 3% | Hacker-Tank 3% | Mutant 3% | Skirmisher Dominant Class ---------------- Mutant | -10/Materials Mutant | -10/Mines Gunner | -9/Materials Gunner | -9/Mines Gunner | -8/Materials Tank | -7/Factory Tank | -7/Lower Caves Gunner | -7/Lower Caves Gunner | -7/Zion Skirmisher | -6/Proximity Caves Skirmisher | -6/Factory Scavenger-Tank | -6/Extension Scavenger-Tank | -6/Cetus Scavenger-Tank | -6/Archives Scavenger-Tank | -6/Hub_04(d) Scavenger-Tank | -5/Factory Scavenger-Gunner | -5/Upper Caves Scavenger-Tank | -5/Upper Caves Scavenger-Mutant | -5/Zhirov Scavenger-Tank | -4/Proximity Caves Scavenger-Tank | -4/Factory Hacker-Tank | -4/Upper Caves Hacker-Gunner | -4/Upper Caves Hacker-Tank | -4/Warlord Scavenger-Tank | -3/Proximity Caves Scavenger-Gunner | -3/Research Gunner | -3/Armory Tank | -3/Lab Scavenger-Gunner | -2/Research Scavenger-Gunner | -2/Testing Scavenger-Executioner | -1/Access Executioner | -1/Command Resources | -11 -10 -10 -9 -9 -8 -7 -7 -7 -7 -6 -6 -6 -6 -6 -6 -5 -5 -5 -5 -4 -4 -4 -4 -4 -3 -3 -3 -3 -2 -2 -1 -1 ----------- Run | Yrd Mat Min Mat Min Mat Fac Low Low Zio Pro Fac Ext Cet Arc Hub Fac Upp Upp Zhi Pro Fac Upp Upp War Pro Res Arm Lab Res Tes Acc Com Matter Collected 18909 | 187 . . 412 82 923 699 607 270 35 18 225 736 282 32 10 811 100 109 84 215 623 223 500 215 155 804 1594 . 2654 2598 1224 2482 Remotely 1694 | . . . . . . . . . . . . . . . . . . . . . . . 340 17 . 10 696 . 631 . . . Salvage Created 23096 | 26 . . 346 51 1082 973 378 241 . . 341 1299 460 66 143 757 . . 138 54 589 199 562 43 331 1600 2892 . 2407 4735 1096 2287 Parts 977 | 2 . . 32 6 55 55 16 16 . . 13 44 18 4 4 38 . . 2 5 23 8 10 1 9 83 121 . 86 185 63 78 Haulers Intercepted 10 | . . . 1 . 2 2 . . . . 1 . . . . 1 . . . . . . . . 1 2 . . . . . . Recyclers Shooed 6 | . . . . . . . . . . . 1 . . . . 3 . . . . . . . . . . . . 1 . . 1 Parts Field Recycled . | . . . . . . . . . . . . . . . . . . . . . . . . . . . . . . . . . Retrieved Matter . | . . . . . . . . . . . . . . . . . . . . . . . . . . . . . . . . . Parts Self-Destructed 66 | . . . . . . . 21 16 3 . . . . . . . . 6 2 3 . 7 1 . 7 . . . . . . . Prevented 7 | . . . . . . . 3 . . . . . . . . . . 2 . . . . 2 . . . . . . . . . Kills | -11 -10 -10 -9 -9 -8 -7 -7 -7 -7 -6 -6 -6 -6 -6 -6 -5 -5 -5 -5 -4 -4 -4 -4 -4 -3 -3 -3 -3 -2 -2 -1 -1 ------- Run | Yrd Mat Min Mat Min Mat Fac Low Low Zio Pro Fac Ext Cet Arc Hub Fac Upp Upp Zhi Pro Fac Upp Upp War Pro Res Arm Lab Res Tes Acc Com Combat Hostiles Destroyed 348 | . . . 9 3 21 16 7 6 . . 6 20 3 1 . 8 . . . 4 8 4 14 1 10 21 53 1 42 55 16 19 Guns 174 | . . . 9 3 21 13 7 6 . . 4 4 2 . . 8 . . . . 6 . 3 1 1 16 26 . 24 19 . 1 Cannons 74 | . . . . . . . . . . . 2 10 . 1 . . . . . . . . . . 2 . . 1 1 25 14 18 AOE 84 | . . . . . . 3 . . . . . 3 . . . . . . . 4 2 4 11 . 7 5 27 . 16 2 . . Classes Destroyed 29 | 1 . . 5 . 3 3 1 . . . . . . . 1 . . . . . 1 1 2 . 1 2 4 . 1 2 1 . Worker 6 | . . . . . 1 1 . . . . . . . . . 2 . . . . 2 . . . . . . . . . . . Builder 3 | . . . . . . 1 . . . . . . . . . 2 . . . . . . . . . . . . . . . . Tunneler 5 | 1 . . . . 1 2 . . . . . 1 . . . . . . . . . . . . . . . . . . . . Hauler 10 | . . . 1 . 2 2 . . . . 1 . . . . 1 . . . . . . . . 1 2 . . . . . . Recycler 6 | . . . . . . . . . . . . . . . 1 1 . . . . 1 . . . . . . . . 3 . . Mechanic 1 | . . . . . . . . . . . . . . . . . . . . . . . . . . . 1 . . . . . Operator 1 | . . . 1 . . . . . . . . . . . . . . . . . . . . . . . . . . . . . Drone 2 | . . . . . . . . . . . . . . . . . . . . . . . . . 2 . . . . . . . Watcher 10 | . . . . . . 1 . . . . . 2 . . . . . . . . . . . . . 1 2 . 2 1 1 . Swarmer 48 | . . . 4 3 3 3 . 3 . . 3 . . . . . . . . 4 . 4 2 . 3 3 . . 8 . 5 . Cutter 1 | . . . . . . . . . . . . . . . . . . . . . . . . . . . 1 . . . . . Saboteur 1 | . . . . . . . . . . . . . . . . . . . . . . . 1 . . . . . . . . . Grunt 138 | . . . 4 . 14 8 5 3 . . 2 10 . . . 7 . . . . . . 4 1 5 8 23 . 9 30 3 2 Brawler 10 | . . . 1 . 1 . . . . . . . . . . . . . . . 1 . 4 . . . 2 . . . . 1 Duelist 5 | . . . . . . . . . . . . . . . . . . . . . 1 . 1 . . . 3 . . . . . Protector 1 | . . . . . . . . . . . . . . . . . . . . . . . . . . . 1 . . . . . Researcher 2 | . . . . . . . . . . . . . . . . . . . . . . . . . . . . . . 2 . . Sentry 32 | . . . . . 2 3 . . . . . 8 . 1 . . . . . . 1 . 1 . . 1 7 . 4 3 1 . Demolisher 4 | . . . . . . . . . . . . . . . . . . . . . . . . . . 2 2 . . . . . Specialist 6 | . . . . . . . . . . . . . . . . . . . . . . . . . . . 4 . . . 2 . Hunter 24 | . . . . . 1 . 1 . . . . . . . . . . . . . 2 . . . . . 6 . 5 7 . 2 Programmer 33 | . . . . . . 2 . . . . 1 1 . . . 1 . . . . 3 . . . . 3 4 . 3 8 4 3 Q-Series 1 | . . . . . . . . . . . . . . . . . . . . . . . . . . . . . . . 1 . Behemoth 2 | . . . . . . . 1 . . . . 1 . . . . . . . . . . . . . . . . . . . . Cetus Guard 3 | . . . . . . . . . . . . . 3 . . . . . . . . . . . . . . . . . . . M Guard 1 | . . . . . . . . . . . . . . . . . . . . . . . . . . . . . . . . 1 Enhanced Grunt 1 | . . . . . . . . . . . . . 1 . . . . . . . . . . . . . . . . . . . Tracker 5 | . . . . . . . . . . . . . . . . . . . . . . . . . . . . . 3 2 . . Combat Programmer 7 | . . . . . . . . . . . . . . . . . . . . . . . . . . . . . 3 2 . 2 Striker 10 | . . . . . . . . . . . . . . . . . . . . . . . . . . 4 . . 4 2 . . Executioner 3 | . . . . . . . . . . . . . . . . . . . . . . . . . . . . . 3 . . . Alpha 7 1 | . . . . . . . . . . . . . . . . . . . . . . . . . . . . . . 1 . . Decomposer 1 | . . . . . . . . . . . . . . . . . . . . . . . 1 . . . . . . . . . Packrat 2 | . . . . . . . . . . . . . . . . . . . . . . 2 . . . . . . . . . . Samaritan 4 | . . . . . . . . . . . . . . . . . . . . . . 1 3 . . . . . . . . . Thug 7 | . . . . . . . . . . . . 1 . . . . . . . . . . . . . . . . . . . 6 Savage 1 | . . . . . . . . . . . . . 1 . . . . . . . . . . . . . . . . . . . Butcher 1 | . . . . . . . . . . . . . . . . . . . . . . . . . . . . . . . . 1 Mutant 1 | . . . . . . . . . . . . . . . . . . . . . . . 1 . . . . . . . . . Commander 1 | . . . . . . . . . . . . . . . . . . . . . . . . . . . . . . . . 1 Best Kill Streak 21 | 1 . . 5 3 5 4 3 3 . . 3 3 2 1 1 4 . . . 4 4 4 13 1 6 5 21 1 7 12 5 6 Combat Bots Only 21 | . . . 5 3 5 3 3 3 . . 3 3 2 1 . 3 . . . 4 3 4 13 1 5 5 21 1 7 12 5 6 Max Kills in Single Turn 4 | 1 . . 1 2 2 2 1 1 . . 1 4 1 1 1 2 . . . 4 2 2 4 1 3 2 3 1 3 2 2 2 Gunslinging 1 | . . . . . 1 . . . . . . . . . . 1 . . . . . . . . . . 1 . 1 . . . Exploded 4 | . . . . . . 2 . . . . . 3 . . . . . . . 4 1 2 4 . 3 2 3 . 3 1 . . Melee . | . . . . . . . . . . . . . . . . . . . . . . . . . . . . . . . . . Uniques/NPCs Destroyed 3 | . . . . . . . . . . . . . 1 . . . . . . . . . . . . . . 1 . . . 1 A7 (-6/Cetus) A5 (-3/Lab) MAIN.C Shell (-1/Command) Combat | -11 -10 -10 -9 -9 -8 -7 -7 -7 -7 -6 -6 -6 -6 -6 -6 -5 -5 -5 -5 -4 -4 -4 -4 -4 -3 -3 -3 -3 -2 -2 -1 -1 -------- Run | Yrd Mat Min Mat Min Mat Fac Low Low Zio Pro Fac Ext Cet Arc Hub Fac Upp Upp Zhi Pro Fac Upp Upp War Pro Res Arm Lab Res Tes Acc Com Hostile Shots Fired 2097 | . 12 . 54 6 95 90 58 35 . . 163 320 7 6 . 55 . . . 4 65 7 44 16 15 34 238 21 235 241 94 182 Missed 617 | . 5 . 9 1 24 42 24 10 . . 49 123 1 2 . 16 . . . . 18 4 18 7 8 10 81 2 43 70 21 29 Intercepted 2 | . . . . . . . . . . . . . . . . . . . . . . . . . . . . . . . . 2 Hits 1480 | . 7 . 45 5 71 48 34 25 . . 114 197 6 4 . 39 . . . 4 47 3 26 9 7 24 157 19 192 171 73 153 Melee 29 | . . . 6 . . . 1 . . . . 1 . . . . . . . . 3 . 1 . . 2 9 . 1 . . 5 Projectile 1451 | . 7 . 39 5 71 48 33 25 . . 114 196 6 4 . 39 . . . 4 44 3 25 9 7 22 148 19 191 171 73 148 AOE 17 | . . . . . . . . . . . . . . . . . . . . . . . . . . 6 3 . 1 . . 7 Critical Strikes 58 | . . . 1 . 2 . 1 2 . . 3 1 . . . 1 . . . . 2 . 1 . . 1 9 1 15 9 . 9 Part Disruptions 10 | . . . . . . . . . . . . . . . . . . . . . 1 . . . . . 1 . . . . 8 Damage Taken 26617 | . 76 . 523 40 1048 565 754 377 . . 1425 1774 121 91 . 991 . . . 134 1109 41 676 260 114 574 2246 238 4269 3845 1133 4193 Core 1445 | . 11 . 74 . 70 16 33 34 . . 157 196 . . . 73 . . . . 72 . 54 . . 14 131 27 258 28 45 152 Absorbed by Shields 4705 | . . . . . . . . . . . . 469 43 . . . . . . . . . . 80 34 599 1175 244 877 . . 1184 Reduced by Siege Mode 267 | . . . . . . . . . . . . . . . . . . . . . 10 . . . . . 9 . 84 . 30 134 Redirected to Shielding 70 | . . . . . . . 70 . . . . . . . . . . . . . . . . . . . . . . . . . Ignored by Resistances 131 | . . . . . . . . . . . 103 28 . . . . . . . . . . . . . . . . . . . . Regen/Repaired (Parts) 4007 | . . . 59 . . 36 . . 652 . . . 61 54 17 275 . . . . . . 130 543 . 53 150 163 260 1036 134 384 Core Remaining (%) 86 | 100 . 95 . 81 87 . . . . 88 . . . . 58 . . . . 92 . . . . 89 . . 81 . 80 . 100 Volleys Fired 1297 | 1 4 . 38 3 61 45 35 15 . 19 38 75 29 9 3 41 5 3 13 13 36 17 17 9 18 60 86 19 105 205 58 217 Largest 5 | 2 2 . 3 3 3 3 3 3 . 1 3 3 3 3 3 3 1 3 1 2 3 2 3 3 2 3 3 1 5 3 2 3 Hottest 360 | 100 100 . 100 69 73 78 78 78 . 65 148 228 239 239 239 205 35 103 20 86 173 105 103 240 68 240 240 240 220 126 220 360 Shots Fired 2458 | 2 8 . 92 10 182 128 81 43 . 19 78 167 81 12 5 109 6 5 13 24 82 31 42 25 19 168 209 17 252 256 60 232 Gun 1763 | 2 8 . 92 10 182 126 68 42 . . 51 97 53 4 2 103 6 5 . 22 73 28 30 25 13 163 190 5 203 128 12 20 Cannon 584 | . . . . . . . . . . 19 27 66 28 8 3 6 . . . . 5 1 . . . . . 12 23 126 48 212 Launcher 88 | . . . . . . 2 13 . . . . 1 . . . . . . . 2 4 2 12 . . 5 19 . 26 2 . . Special 23 | . . . . . . . . 1 . . . 3 . . . . . . 13 . . . . . 6 . . . . . . . Kinetic 1596 | . . . 76 10 182 126 68 42 . . 51 14 14 . . 102 6 5 . 22 73 28 30 24 13 162 186 . 203 115 16 28 Thermal 707 | 2 8 . 16 . . . . 1 . 19 27 152 67 12 5 7 . . 13 . 5 1 . 1 . 1 4 12 21 127 28 178 Explosive 94 | . . . . . . 2 13 . . . . 1 . . . . . . . 2 4 2 12 . 6 5 19 . 26 2 . . Electromagnetic 13 | . . . . . . . . . . . . . . . . . . . . . . . . . . . . . . 1 12 . Entropic 48 | . . . . . . . . . . . . . . . . . . . . . . . . . . . . 5 2 11 4 26 Robot Hit Streak 47 | 1 1 . 13 2 22 14 7 6 . . 9 15 9 5 1 8 . . 12 . 10 4 11 3 5 25 25 11 26 47 31 38 Robot Miss Streak 6 | . 2 . 3 3 2 5 5 3 . . 5 3 5 2 2 6 . . 1 . 3 2 1 2 4 5 3 . 3 4 4 5 Penetration Max 2 | . . . . . . 1 1 . . . 1 . 1 . . 1 . . . . 1 1 . 1 . 2 1 . 1 1 1 2 Secondary Targets 38 | . . . 2 . 3 4 1 3 . . . . . . . 2 . . . . . . 1 . . 5 6 . 8 3 . . Max Gunslinging Chain 2 | . . . 1 . 1 1 1 1 . . . . . . . 1 . . . . . . 1 . . 1 2 . 1 1 . . Capacitor 326 | . . . . . . . . . . . . . . . . . . . . . . . . . . . . . . 100 41 185 Shots Hit Robots 1546 | 1 3 . 58 3 130 90 40 23 . . 28 108 43 8 1 57 . . 12 . 44 10 22 6 6 110 161 11 167 179 38 187 Core Hits 1073 | 1 1 . 23 3 47 44 21 13 . . 12 56 24 3 2 26 . . 4 4 22 8 41 4 15 67 165 5 119 126 71 146 Critical Kills 67 | . . . . . . . . . . . . . 2 . . 3 . . . . 4 . 1 . 1 2 4 . 5 19 11 15 Critical Parts Destroyed 74 | . . . . . . . 1 . . . . . . . . 4 . . . . 4 1 2 . . 6 3 . 5 4 20 24 Critical Strikes 201 | . 1 . . . . . 1 . . . . 5 3 . . 7 . . 1 . 8 1 3 . 2 8 9 . 10 29 47 66 Burn 6 | . 1 . . . . . . . . . . 4 1 . . . . . . . . . . . . . . . . . . . Meltdown 12 | . . . . . . . . . . . . . 1 . . . . . . . . . . . . . . . 1 9 1 . Destroy 172 | . . . . . . . 1 . . . . . 1 . . 7 . . . . 8 1 3 . 1 8 9 . 9 15 46 63 Blast 1 | . . . . . . . . . . . . . . . . . . . . . . . . . . . . . . 1 . . Sever 3 | . . . . . . . . . . . . 1 . . . . . . 1 . . . . . 1 . . . . . . . Sunder 7 | . . . . . . . . . . . . . . . . . . . . . . . . . . . . . . 4 . 3 Melee Attacks . | . . . . . . . . . . . . . . . . . . . . . . . . . . . . . . . . . Impact . | . . . . . . . . . . . . . . . . . . . . . . . . . . . . . . . . . Slashing . | . . . . . . . . . . . . . . . . . . . . . . . . . . . . . . . . . Piercing . | . . . . . . . . . . . . . . . . . . . . . . . . . . . . . . . . . Sneak Attacks . | . . . . . . . . . . . . . . . . . . . . . . . . . . . . . . . . . Combat Hostiles . | . . . . . . . . . . . . . . . . . . . . . . . . . . . . . . . . . Follow-up Attacks . | . . . . . . . . . . . . . . . . . . . . . . . . . . . . . . . . . Damage Inflicted 64236 | 12 37 . 639 64 2012 2073 805 409 . . 669 3410 1371 161 75 1913 . . 110 274 1865 672 3206 265 1502 4046 10060 642 9117 9545 1702 7580 Guns 27335 | 12 37 . 620 64 2012 1756 805 409 . . 502 1324 738 . 43 1861 . . . 26 1142 254 437 265 50 2972 4119 . 3842 3509 38 498 Cannons 17933 | . . . . . . . . . . . 148 1434 633 161 32 33 . . . . 36 . . . . . . 642 713 5410 1609 7082 Explosions 18349 | . . . . . . 261 . . . . . 618 . . . . . . . 248 687 391 2691 . 1215 1074 5941 . 4562 606 55 . Melee . | . . . . . . . . . . . . . . . . . . . . . . . . . . . . . . . . . Ramming 252 | . . . 19 . . 56 . . . . 19 14 . . . 19 . . . . . 27 78 . . . . . . 20 . . Kinetic 25249 | . . . 535 64 2012 1756 805 409 . . 502 125 243 . . 1821 . . . 26 1142 254 437 265 50 2972 4119 . 3842 2940 448 482 Thermal 17617 | 12 37 . 85 . . . . . . . 148 2653 1128 161 75 73 . . 110 . 275 . . . . . . 231 713 5220 1216 5480 Explosive 18055 | . . . . . . 261 . . . . . 618 . . . . . . . 248 448 391 2691 . 1215 1074 5941 . 4562 606 . . Electromagnetic 42 | . . . . . . . . . . . . . . . . . . . . . . . . . . . . . . 4 38 . Impact . | . . . . . . . . . . . . . . . . . . . . . . . . . . . . . . . . . Slashing 237 | . . . . . . . . . . . . . . . . . . . . . . . . . 237 . . . . . . . Piercing . | . . . . . . . . . . . . . . . . . . . . . . . . . . . . . . . . . Entropic 2784 | . . . . . . . . . . . . . . . . . . . . . . . . . . . . 411 . 755 . 1618 Highest Corruption 33 | . . . 4 4 . 6 11 11 11 . 2 2 15 15 22 2 2 2 2 2 2 2 2 2 . . 6 13 21 23 6 33 Average Corruption 7 | . . . 4 4 . 4 9 11 11 . 1 2 8 15 15 1 2 2 2 2 1 2 2 2 . . 3 8 6 18 2 19 Corruption Purged 40 | . . . . . . . . . . . . . . . . . . . . . . . . . . . . . . 6 . 34 Corruption Blocked . | . . . . . . . . . . . . . . . . . . . . . . . . . . . . . . . . . Effects 475 | . . . 7 2 . 20 51 28 3 . 3 32 25 6 8 6 12 9 6 12 4 10 8 . . . 14 11 23 73 10 92 Message Errors 108 | . . . 1 . . 4 9 7 1 . 2 12 4 1 2 2 2 . 2 3 1 2 2 . . . 6 1 4 13 5 22 Matter Fused 101 | . . . 1 1 . 3 10 7 1 . . 6 7 2 2 1 5 1 3 2 . 3 2 . . . 3 3 4 17 1 16 Heat Flow Errors 58 | . . . 1 . . 1 6 5 . . 1 3 3 1 . . . 1 1 1 1 3 1 . . . . 2 1 8 . 18 Energy Discharges 64 | . . . 2 . . 7 11 2 . . . 4 3 1 1 1 2 1 . 1 1 1 1 . . . 1 1 1 11 1 10 Parts Rejected 4 | . . . 1 . . . . . . . . . . . . 1 . . . . . . . . . . . . 1 1 . . Parts Fused 4 | . . . . . . . . 1 . . . 1 . . . . . . . 1 . . . . . . . . 1 . . . Data Loss (minor) 55 | . . . . . . 1 8 2 . . . 5 2 . 3 1 1 4 . 1 . . 1 . . . 3 2 2 7 2 10 Data Loss (major) 19 | . . . . . . . 1 1 1 . . 1 2 . . . 1 1 . . . . 1 . . . . . 3 2 . 5 Misfires 19 | . . . 1 1 . . 3 1 . . . . . . . . 1 . . 3 1 . . . . . . . 1 1 1 5 Alerts 14 | . . . . . . 1 2 1 . . . . 2 . . . . 1 . . . 1 . . . . . . 1 3 . 2 Misdirections 2 | . . . . . . . . . . . . . . . . . . . . . . . . . . . . . . 2 . . Weapon Failures 27 | . . . . . . 3 1 1 . . . . 2 1 . . . . . . . . . . . . 1 2 4 8 . 4 Overload Shots 11 | . . . . . . . . . . . . . . . . . . . . . . . . 1 . 1 4 5 . . . . Overflow Damage 518 | . . . . . . 27 . . . . 3 9 32 . . . . . 8 3 . 34 127 . 11 22 47 . 47 93 32 23 Projectiles 192 | . . . . . . . . . . . 3 . 32 . . . . . 8 . . . . . 11 . . . . 93 22 23 Explosions 274 | . . . . . . 27 . . . . . 9 . . . . . . . 3 . 10 99 . . 22 47 . 47 . 10 . Melee 52 | . . . . . . . . . . . . . . . . . . . . . . 24 28 . . . . . . . . . Knockbacks 17 | . . . . . . 1 . . . . . . . . . . . . . . . . . . . . . . . 1 6 9 Impact 1 | . . . . . . 1 . . . . . . . . . . . . . . . . . . . . . . . . . . Kinetic 16 | . . . . . . . . . . . . . . . . . . . . . . . . . . . . . . 1 6 9 Secondary . | . . . . . . . . . . . . . . . . . . . . . . . . . . . . . . . . . Self-Inflicted Damage 485 | . . . . . . 53 32 . . . . 96 . . . 78 . . . 68 . . 44 . . . 58 . 56 . . . Shots 12 | . . . . . . 2 1 . . . . 3 . . . 1 . . . 2 . . 1 . . . 1 . 1 . . . Rammed 15 | . . . . . . . . . . . . 1 . . . 2 . . . . . 1 8 . . . . . . 2 . 1 Targets Rammed 23 | . . . 4 . . 3 . . . . 1 1 . . . 2 . . . . . 1 8 . . . . . . 2 . 1 Kicked 8 | . . . 4 . . 3 . . . . 1 . . . . . . . . . . . . . . . . . . . . . Crushed . | . . . . . . . . . . . . . . . . . . . . . . . . . . . . . . . . . Highest Temperature 520 | 39 117 . 240 2 23 131 303 209 . 90 238 451 515 154 . 383 22 193 278 178 273 122 236 194 . 330 364 224 241 376 78 520 Average Temperature 91 | 20 52 . 135 1 6 22 102 83 . 36 73 109 165 86 . 132 12 82 141 59 65 50 45 62 . 82 86 97 49 99 23 104 Received Heat Transfer 3494 | . 42 . 126 . 423 153 132 135 . . 291 625 20 9 . 198 . . . . . . 144 14 16 23 259 . 89 351 126 318 Effects 15 | . . . 1 . . . 1 . . . . 1 4 . . 1 . . . . 2 . . . . . 1 . . 2 . 2 Shutdowns 1 | . . . . . . . . . . . . . 1 . . . . . . . . . . . . . . . . . . . Energy Bleed 5 | . . . . . . . 1 . . . . . 3 . . . . . . . . . . . . . 1 . . . . . Interference 5 | . . . 1 . . . . . . . . . . . . . . . . . 2 . . . . . . . . 2 . . Matter Decay 1 | . . . . . . . . . . . . . . . . . . . . . . . . . . . . . . . . 1 Damage (minor) 2 | . . . . . . . . . . . . 1 . . . 1 . . . . . . . . . . . . . . . . Damage (major) 1 | . . . . . . . . . . . . . . . . . . . . . . . . . . . . . . . . 1 Siege Activations 9 | . . . . . . . . . . . . . . . . . . . . . 1 . . . . . 4 . 1 . 1 2 Total Turns 142 | . . . . . . . . . . . . . . . . . . . . . 10 . . . . . 24 . 17 . 26 65 Longest Duration 64 | . . . . . . . . . . . . . . . . . . . . . 10 . . . . . 16 . 17 . 26 64 Martial Activations . | . . . . . . . . . . . . . . . . . . . . . . . . . . . . . . . . . Shielding Activations . | . . . . . . . . . . . . . . . . . . . . . . . . . . . . . . . . . Robots Disrupted 3 | . . . . . . . . . . . . . . . . . . . . . . . . . . . 1 . . . 2 . Combat Hostiles 1 | . . . . . . . . . . . . . . . . . . . . . . . . . . . 1 . . . . . Robots Corrupted 4 | . . . . . . . . . . . . . . . . . . . . . . 1 3 . . . . . . . . . Combat Hostiles . | . . . . . . . . . . . . . . . . . . . . . . . . . . . . . . . . . Parts Fried 6 | . . . . . . . . . . . . . . . . . . . . . . 2 1 . . . . . 1 . . 2 Impact Corruptions 6 | . . . . . . . . . . . . . . . . . . . . . . 1 5 . . . . . . . . . Robots Melted 16 | . . . . . . . . . . . . 3 1 . . . . . . . . . . . . . . . 1 9 2 . Combat Hostiles 16 | . . . . . . . . . . . . 3 1 . . . . . . . . . . . . . . . 1 9 2 . Parts Melted 32 | . . . . . . . . . . . . 14 1 . . . . . . . . . . . . . 1 . 2 12 2 . Heat Transferred 15568 | 37 185 . 259 . . . . . . . 198 4864 1494 250 124 87 . . 444 . 187 . . . . . . 129 452 3737 716 2405 Parts Sabotaged . | . . . . . . . . . . . . . . . . . . . . . . . . . . . . . . . . . Parts Stolen . | . . . . . . . . . . . . . . . . . . . . . . . . . . . . . . . . . Parts Stripped . | . . . . . . . . . . . . . . . . . . . . . . . . . . . . . . . . . Power Chain Reactions 3 | . . . . . . . . . . . . . . . . . . . . . . . . . . . 1 . 1 . 1 . Alert | -11 -10 -10 -9 -9 -8 -7 -7 -7 -7 -6 -6 -6 -6 -6 -6 -5 -5 -5 -5 -4 -4 -4 -4 -4 -3 -3 -3 -3 -2 -2 -1 -1 ------- Run | Yrd Mat Min Mat Min Mat Fac Low Low Zio Pro Fac Ext Cet Arc Hub Fac Upp Upp Zhi Pro Fac Upp Upp War Pro Res Arm Lab Res Tes Acc Com Maximum Alert Level 4 | . . . . . 1 2 . . . . . 1 1 . . 3 . . . . 2 . . . . 2 4 . 4 4 4 3 Low Security (%) 57 | 100 100 100 100 100 81 62 . . . . 100 88 95 100 100 14 . . . . 34 . . . . 32 . . 38 5 . 78 Level 1 16 | . . . . . 18 28 . . . . . 11 4 . . 33 . . . . 7 . . . . 64 67 . 6 25 . . Level 2 8 | . . . . . . 8 . . . . . . . . . 44 . . . . 57 . . . . 2 . . 6 19 7 2 Level 3 11 | . . . . . . . . . . . . . . . . 7 . . . . . . . . . . 14 . 25 39 43 19 Level 4 5 | . . . . . . . . . . . . . . . . . . . . . . . . . . . 17 . 23 8 49 . Level 5 . | . . . . . . . . . . . . . . . . . . . . . . . . . . . . . . . . . High Security . | . . . . . . . . . . . . . . . . . . . . . . . . . . . . . . . . . Max Security . | . . . . . . . . . . . . . . . . . . . . . . . . . . . . . . . . . Peak Influence 1508 | 5 15 . 111 91 276 425 . . . . 76 238 212 174 171 715 . . . . 474 . . . . 455 1508 . 1313 1203 1261 799 Initial 796 | . . . . 21 19 125 . . . . . . 112 14 50 65 . . . . . . . . . 300 234 . . 728 719 796 Average 339 | . . . 60 72 83 175 . . . . 15 53 114 122 89 424 . . . . 282 . . . . 220 574 . 628 657 1004 734 Influence Increases 14259 | 5 15 . 309 70 621 708 185 170 . . 191 811 317 180 194 1480 . . 5 90 634 90 270 84 185 1003 1732 . 2013 1651 898 348 Destroy 0b10 Robot/C 7580 | . . . 180 60 420 320 140 120 . . 120 500 160 80 60 580 . . . 80 160 80 260 20 160 420 1060 . 840 1140 380 240 Destroy 0b10 Robot/NC 275 | 5 . . 10 . 20 35 . . . . 5 20 10 . 20 40 . . 5 . 15 . . . 15 15 20 . 10 20 10 . Destroy Leader 1320 | . . . 22 10 84 86 30 20 . . 22 64 . . 12 92 . . . 10 50 10 10 . 10 76 214 . 194 172 72 60 Allied During Kill 901 | . . . . . . . . . . . . 84 129 80 92 442 . . . . . . . 4 . . 44 . . . 26 . Successful Hack 139 | . . . 5 . 20 21 . . . . 5 27 . . . 43 . . . . 8 . . . . . . . . 10 . . Disable Machine 780 | . . . . . . 30 . . . . 15 45 . 15 . 75 . . . . 285 . . . . . 120 . 30 135 30 . Anti-Garrison Action 650 | . . . . . . 200 . . . . . . . . . . . . . . . . . . . . . . 300 . 150 . Destroy Structure 1714 | . . . 2 . 2 16 . . . . 9 26 18 5 10 178 . . . . 116 . . . . 162 274 . 564 144 140 48 Advance Influence 300 | . . . . . . . . . . . . . . . . . . . . . . . . . . 300 . . . . . . Partial Spotted 15 | . . . . . . . . . . . . . . . . 15 . . . . . . . . . . . . . . . . Lose Combat Pursuer 585 | . 15 . 90 . 75 . 15 30 . . 15 45 . . . 15 . . . . . . . 60 . 30 . . 75 30 90 . Influence Decreases 13569 | 5 15 . 254 74 396 610 559 170 . . 191 611 482 71 204 911 647 56 5 90 194 530 270 45 224 556 677 1502 718 1747 852 903 Entered New Map 4314 | . . . . 34 32 151 140 . . . . . 88 21 94 69 261 11 . . . 163 . . 39 . 213 1502 . 567 480 449 Time Decay 7477 | 5 15 . 244 40 314 459 409 130 . . 175 374 334 50 110 502 386 45 5 90 174 367 268 42 175 546 374 . 598 530 342 374 Lost Part 534 | . . . 10 . 50 . 10 40 . . 16 66 . . . . . . . . 20 . 2 . 10 . 30 . 120 50 30 80 Lost Ally 344 | . . . . . . . . . . . . 171 60 . . 40 . . . . . . . 3 . 10 60 . . . . . Purge Threat 900 | . . . . . . . . . . . . . . . . 300 . . . . . . . . . . . . . 600 . . Squads Dispatched 91 | . 2 . 1 . 2 7 . . . . 4 3 . . 4 8 . . . . 6 . 1 . . 6 8 . 5 18 9 7 Investigation 20 | . 1 . 1 . . 2 . . . . . . . . 1 3 . . . . 1 . . . . 5 1 . . 3 1 1 Extermination 18 | . . . . . . 3 . . . . 2 . . . 1 2 . . . . 1 . . . . . 2 . . 3 2 2 Reinforcement 32 | . 1 . . . 2 2 . . . . 2 3 . . 2 2 . . . . 1 . . . . 1 3 . . 8 3 2 Assault 10 | . . . . . . . . . . . . . . . . 1 . . . . . . 1 . . . 2 . . 1 3 2 Garrison 3 | . . . . . . . . . . . . . . . . . . . . . 3 . . . . . . . . . . . Intercept 8 | . . . . . . . . . . . . . . . . . . . . . . . . . . . . . 5 3 . . Searches Triggered . | . . . . . . . . . . . . . . . . . . . . . . . . . . . . . . . . . Construction Impeded 5 | . . . . . . . . . . . 1 1 . . 1 1 . . . . . . . . . . . . . 1 . . Haulers Reinforced 4 | . . . . . . . . . . . 1 . . . . . . . . . . . . . . 1 . . . 1 1 . Active Scanning Responses . | . . . . . . . . . . . . . . . . . . . . . . . . . . . . . . . . . Cargo Convoy Interrupts . | . . . . . . . . . . . . . . . . . . . . . . . . . . . . . . . . . Stealth | -11 -10 -10 -9 -9 -8 -7 -7 -7 -7 -6 -6 -6 -6 -6 -6 -5 -5 -5 -5 -4 -4 -4 -4 -4 -3 -3 -3 -3 -2 -2 -1 -1 --------- Run | Yrd Mat Min Mat Min Mat Fac Low Low Zio Pro Fac Ext Cet Arc Hub Fac Upp Upp Zhi Pro Fac Upp Upp War Pro Res Arm Lab Res Tes Acc Com Distress Signals 37 | . 1 . 2 . 2 2 . . . . 2 2 2 . . 1 . . . . . . . . . 6 2 . 9 . 3 3 Communications Jammed 1 | . . . . . . . . . . . . . . . . . . . . . . . . . . . . . . . 1 . Distress Signals . | . . . . . . . . . . . . . . . . . . . . . . . . . . . . . . . . . Times Spotted 530 | . 7 . 15 3 34 20 10 7 . . 11 31 10 5 3 39 . . . 4 10 4 15 7 11 38 62 1 58 66 25 34 Peak Tracking Total 17 | . 4 . 5 3 6 3 5 3 . . 3 6 5 2 2 11 . . . 4 3 4 9 12 6 6 17 1 6 7 6 7 Tactical Retreats 30 | . 1 . 3 . 4 . 1 1 . . 1 2 . . . 1 . . . . . . . 2 . 2 . . 4 2 3 3 Traps | -11 -10 -10 -9 -9 -8 -7 -7 -7 -7 -6 -6 -6 -6 -6 -6 -5 -5 -5 -5 -4 -4 -4 -4 -4 -3 -3 -3 -3 -2 -2 -1 -1 ------- Run | Yrd Mat Min Mat Min Mat Fac Low Low Zio Pro Fac Ext Cet Arc Hub Fac Upp Upp Zhi Pro Fac Upp Upp War Pro Res Arm Lab Res Tes Acc Com Traps Triggered 18 | . 1 . . . . 5 . . . . . 6 . . . 3 . . . . . . . . . . 2 . . . . 1 Indirectly . | . . . . . . . . . . . . . . . . . . . . . . . . . . . . . . . . . Trap Hack Attempts . | . . . . . . . . . . . . . . . . . . . . . . . . . . . . . . . . . Triggered . | . . . . . . . . . . . . . . . . . . . . . . . . . . . . . . . . . Disarmed 6 | . . . . . . . . . . . . . . . . 6 . . . . . . . . . . . . . . . . Reprogrammed . | . . . . . . . . . . . . . . . . . . . . . . . . . . . . . . . . . Reused . | . . . . . . . . . . . . . . . . . . . . . . . . . . . . . . . . . Traps Extracted . | . . . . . . . . . . . . . . . . . . . . . . . . . . . . . . . . . Installed . | . . . . . . . . . . . . . . . . . . . . . . . . . . . . . . . . . Triggered . | . . . . . . . . . . . . . . . . . . . . . . . . . . . . . . . . . Most Traps Carried 1 | . . 1 . . . . . . . . . . . . . . . . . . . . . . . . . . . . . . Machines | -11 -10 -10 -9 -9 -8 -7 -7 -7 -7 -6 -6 -6 -6 -6 -6 -5 -5 -5 -5 -4 -4 -4 -4 -4 -3 -3 -3 -3 -2 -2 -1 -1 ---------- Run | Yrd Mat Min Mat Min Mat Fac Low Low Zio Pro Fac Ext Cet Arc Hub Fac Upp Upp Zhi Pro Fac Upp Upp War Pro Res Arm Lab Res Tes Acc Com Machines Disabled 65 | . . . . . . 2 . . . . 1 4 . 1 . 5 . . . . 19 1 1 1 . . 8 2 4 10 3 3 Max in Single Turn 18 | . . . . . . 1 . . . . 1 1 . 1 . 1 . . . . 18 1 1 1 . . 2 1 1 1 1 1 Garrison Access 7 | . . . . . . 1 . . . . 1 . . . . 1 . . . . . . . . . . . . 2 1 1 . Energy Cycler 2 | . . . . . . . . . . . . . . . . . . . . . . . . . . . 1 . . . 1 . Machines Repaired . | . . . . . . . . . . . . . . . . . . . . . . . . . . . . . . . . . Machines Dismantled 3 | . . . . . . . . . . . . 2 . . . . . . . . . . . . . . . . . . . 1 Machines Sabotaged . | . . . . . . . . . . . . . . . . . . . . . . . . . . . . . . . . . Overloaded Fab Kills . | . . . . . . . . . . . . . . . . . . . . . . . . . . . . . . . . . Hacking | -11 -10 -10 -9 -9 -8 -7 -7 -7 -7 -6 -6 -6 -6 -6 -6 -5 -5 -5 -5 -4 -4 -4 -4 -4 -3 -3 -3 -3 -2 -2 -1 -1 --------- Run | Yrd Mat Min Mat Min Mat Fac Low Low Zio Pro Fac Ext Cet Arc Hub Fac Upp Upp Zhi Pro Fac Upp Upp War Pro Res Arm Lab Res Tes Acc Com Machines Accessed 88 | . 1 . 4 . 5 5 1 . . . 6 9 . . 2 11 . 1 4 . 3 1 . 10 . 5 6 2 . 8 1 3 Terminals 44 | . 1 . 3 . 4 3 . . . . 2 8 . . 2 6 . . . . 3 . . . . 1 4 . . 5 . 2 Fabricators 4 | . . . . . . . . . . . 2 . . . . . . . . . . . . . . . 2 . . . . . Repair Stations 5 | . . . 1 . . 1 . . . . . . . . . 2 . . . . . . . . . . . . . . . 1 Recycling Units 5 | . . . . . . . . . . . 1 1 . . . 2 . . . . . . . . . 1 . . . . . . Scanalyzers 5 | . . . . . 1 . . . . . . . . . . . . . . . . . . . . 2 . . . 2 . . Garrison Access 6 | . . . . . . 1 . . . . 1 . . . . 1 . . . . . . . . . 1 . . . 1 1 . Total Hacks 259 | . 2 . 12 . 16 13 1 . . . 8 17 . . 4 46 . 1 17 . 19 1 . 19 . 12 9 20 . 37 2 3 Successful 146 | . . . 4 . 9 5 1 . . . 5 9 . . . 26 . 1 17 . 10 1 . 19 . 1 1 20 . 15 . 2 Failed 113 | . 2 . 8 . 7 8 . . . . 3 8 . . 4 20 . . . . 9 . . . . 11 8 . . 22 2 1 Catastrophic 26 | . . . 1 . . 1 . . . . 2 . . . 2 4 . . . . 1 . . . . 2 4 . . 8 . 1 Database Lockouts . | . . . . . . . . . . . . . . . . . . . . . . . . . . . . . . . . . Manual 86 | . . . 6 . 8 5 . . . . 3 5 1 . 1 29 . . . . 12 . . . . 4 . . . 10 . 2 Terminals 149 | . 2 . 11 . 14 7 . . . . 3 14 . . 4 31 . . . . 19 . . . . 4 7 . . 31 . 2 Fabricators 5 | . . . . . . . . . . . 3 . . . . . . . . . . . . . . . 2 . . . . . Repair Stations 10 | . . . 1 . . 2 . . . . . . . . . 6 . . . . . . . . . . . . . . . 1 Recycling Units 12 | . . . . . . . . . . . 1 3 . . . 6 . . . . . . . . . 2 . . . . . . Scanalyzers 10 | . . . . . 2 . . . . . . . . . . . . . . . . . . . . 4 . . . 4 . . Garrison Access 14 | . . . . . . 4 . . . . 1 . . . . 3 . . . . . . . . . 2 . . . 2 2 . Terminal Hacks 103 | . . . 3 . 3 3 1 . . . 1 5 . . . 12 . 1 17 . 7 1 . 19 . . 1 20 . 8 . 1 Record 44 | . . . . . . . . . . . . . . . . . . . 5 . . 1 . 18 . . . 20 . . . . Part Schematic 7 | . . . . . . . . . . . . . . . . . . . 4 . 3 . . . . . . . . . . . Robot Analysis 4 | . . . . . . . . . . . . . . . . . . . 4 . . . . . . . . . . . . . Prototype ID Bank 8 | . . . 1 . . 2 . . . . . . . . . 1 . . 4 . . . . . . . . . . . . . Open Door 10 | . . . . . . . 1 . . . 1 5 . . . . . 1 . . . . . 1 . . . . . . . 1 Level Access Points 1 | . . . . . 1 . . . . . . . . . . . . . . . . . . . . . . . . . . . Branch Access Points 4 | . . . . . . 1 . . . . . . . . . 1 . . . . 1 . . . . . . . . 1 . . Emergency Access Points 1 | . . . . . . . . . . . . . . . . 1 . . . . . . . . . . . . . . . . Terminal Index 3 | . . . . . . . . . . . . . . . . 1 . . . . 1 . . . . . . . . 1 . . Repair Station Index 1 | . . . . . . . . . . . . . . . . 1 . . . . . . . . . . . . . . . . Alert Level 3 | . . . . . . . . . . . . . . . . 1 . . . . 1 . . . . . . . . 1 . . Unreport Threat 6 | . . . . . . . . . . . . . . . . 2 . . . . . . . . . . . . . 4 . . Locate Traps 2 | . . . 1 . . . . . . . . . . . . . . . . . . . . . . . . . . 1 . . Disarm Traps 1 | . . . . . . . . . . . . . . . . 1 . . . . . . . . . . . . . . . . Dispatch Records 1 | . . . . . . . . . . . . . . . . 1 . . . . . . . . . . . . . . . . Patrol Status 1 | . . . . . . . . . . . . . . . . 1 . . . . . . . . . . . . . . . . Hauler Manifests 3 | . . . . . 1 . . . . . . . . . . 1 . . . . 1 . . . . . . . . . . . Registered Components 1 | . . . 1 . . . . . . . . . . . . . . . . . . . . . . . . . . . . . Zone Layout 2 | . . . . . 1 . . . . . . . . . . . . . . . . . . . . . 1 . . . . . Fabricator Hacks 1 | . . . . . . . . . . . 1 . . . . . . . . . . . . . . . . . . . . . Network Status 1 | . . . . . . . . . . . 1 . . . . . . . . . . . . . . . . . . . . . Repair Station Hacks 2 | . . . . . . . . . . . . . . . . 2 . . . . . . . . . . . . . . . . Scan Component 1 | . . . . . . . . . . . . . . . . 1 . . . . . . . . . . . . . . . . Repair 1 | . . . . . . . . . . . . . . . . 1 . . . . . . . . . . . . . . . . Recycling Unit Hacks 3 | . . . . . . . . . . . . 1 . . . 2 . . . . . . . . . . . . . . . . Retrieve Components 3 | . . . . . . . . . . . . 1 . . . 2 . . . . . . . . . . . . . . . . Scanalyzer 5 | . . . . . 1 . . . . . . . . . . . . . . . . . . . . 1 . . . 3 . . Insert Component 5 | . . . . . 1 . . . . . . . . . . . . . . . . . . . . 1 . . . 3 . . Garrison Access Hacks 3 | . . . . . . . . . . . 1 . . . . 1 . . . . . . . . . . . . . 1 . . Seal Access 3 | . . . . . . . . . . . 1 . . . . 1 . . . . . . . . . . . . . 1 . . Unauthorized Hacks 28 | . . . 1 . 5 2 . . . . 2 3 . . . 8 . . . . 3 . . . . . . . . 3 . 1 Terminals 20 | . . . . . 5 . . . . . 1 3 . . . 5 . . . . 3 . . . . . . . . 3 . . Track 1 | . . . . . . . . . . . . 1 . . . . . . . . . . . . . . . . . . . . Botnet 13 | . . . . . 2 . . . . . 1 2 . . . 4 . . . . 2 . . . . . . . . 2 . . Operators 1 | . . . . . . . . . . . . . . . . . . . . . . . . . . . . . . 1 . . Skim 5 | . . . . . 3 . . . . . . . . . . 1 . . . . 1 . . . . . . . . . . . Fabricators 1 | . . . . . . . . . . . 1 . . . . . . . . . . . . . . . . . . . . . Haulers 1 | . . . . . . . . . . . 1 . . . . . . . . . . . . . . . . . . . . . Repair Stations 4 | . . . 1 . . 1 . . . . . . . . . 1 . . . . . . . . . . . . . . . 1 Patch 4 | . . . 1 . . 1 . . . . . . . . . 1 . . . . . . . . . . . . . . . 1 Recycling Units 2 | . . . . . . . . . . . . . . . . 2 . . . . . . . . . . . . . . . . Recyclers 1 | . . . . . . . . . . . . . . . . 1 . . . . . . . . . . . . . . . . Mask 1 | . . . . . . . . . . . . . . . . 1 . . . . . . . . . . . . . . . . Scanalyzers . | . . . . . . . . . . . . . . . . . . . . . . . . . . . . . . . . . Garrison Access 1 | . . . . . . 1 . . . . . . . . . . . . . . . . . . . . . . . . . . Jam 1 | . . . . . . 1 . . . . . . . . . . . . . . . . . . . . . . . . . . Data Cores Recovered 3 | . . . 1 . . . . . . . . . . . 1 . . . . . . . . . . . . . . . 1 . Used . | . . . . . . . . . . . . . . . . . . . . . . . . . . . . . . . . . Hacking Detections 59 | . 1 . 3 . 5 4 . . . . 4 6 . . 2 10 . . . . 3 . . . . 5 6 . . 7 1 2 Full Trace Events 9 | . . . . . . . . . . . . . . . 1 2 . . . . 1 . . . . 1 1 . . 2 1 . Feedback Events 1 | . . . . . . . . . . . . . . . . . . . . . . . . . . . . . . 1 . . Corruption 1 | . . . . . . . . . . . . . . . . . . . . . . . . . . . . . . 1 . . Feedback Blocked . | . . . . . . . . . . . . . . . . . . . . . . . . . . . . . . . . . Robot Schematics Acquired 1 | . . . . . . . . . . . . . . . . . . . . . . . . . . . . . . 1 . . Robots Built . | . . . . . . . . . . . . . . . . . . . . . . . . . . . . . . . . . Authchips . | . . . . . . . . . . . . . . . . . . . . . . . . . . . . . . . . . Time . | . . . . . . . . . . . . . . . . . . . . . . . . . . . . . . . . . Total Robot Build Rating . | . . . . . . . . . . . . . . . . . . . . . . . . . . . . . . . . . Part Schematics Acquired 12 | . . . . . . . . . . . . . . . . . . . 4 . 3 . . . . . . . . 5 . . Parts Built . | . . . . . . . . . . . . . . . . . . . . . . . . . . . . . . . . . Authchips . | . . . . . . . . . . . . . . . . . . . . . . . . . . . . . . . . . Time . | . . . . . . . . . . . . . . . . . . . . . . . . . . . . . . . . . Total Part Build Rating . | . . . . . . . . . . . . . . . . . . . . . . . . . . . . . . . . . Parts Repaired 1 | . . . . . . . . . . . . . . . . 1 . . . . . . . . . . . . . . . . Time 68 | . . . . . . . . . . . . . . . . 68 . . . . . . . . . . . . . . . . Parts Recycled . | . . . . . . . . . . . . . . . . . . . . . . . . . . . . . . . . . Recycled Matter . | . . . . . . . . . . . . . . . . . . . . . . . . . . . . . . . . . Retrieved Matter . | . . . . . . . . . . . . . . . . . . . . . . . . . . . . . . . . . Retrieved Components 14 | . . . . . . . . . . . . 2 . . . 12 . . . . . . . . . . . . . . . . Parts Scanalyzed . | . . . . . . . . . . . . . . . . . . . . . . . . . . . . . . . . . Part Schematics Acquired . | . . . . . . . . . . . . . . . . . . . . . . . . . . . . . . . . . Parts Damaged . | . . . . . . . . . . . . . . . . . . . . . . . . . . . . . . . . . Bothacking | -11 -10 -10 -9 -9 -8 -7 -7 -7 -7 -6 -6 -6 -6 -6 -6 -5 -5 -5 -5 -4 -4 -4 -4 -4 -3 -3 -3 -3 -2 -2 -1 -1 ------------ Run | Yrd Mat Min Mat Min Mat Fac Low Low Zio Pro Fac Ext Cet Arc Hub Fac Upp Upp Zhi Pro Fac Upp Upp War Pro Res Arm Lab Res Tes Acc Com Used RIF Installer . | . . . . . . . . . . . . . . . . . . . . . . . . . . . . . . . . . Robots Hacked . | . . . . . . . . . . . . . . . . . . . . . . . . . . . . . . . . . Non-combat . | . . . . . . . . . . . . . . . . . . . . . . . . . . . . . . . . . Combat . | . . . . . . . . . . . . . . . . . . . . . . . . . . . . . . . . . Robot Hacks Applied . | . . . . . . . . . . . . . . . . . . . . . . . . . . . . . . . . . Relay Couplers Released 4 | . . . . . . . . . . . . . . . . . . . . . . . . . . . . . 1 . 3 . Machine Destruction 4 | . . . . . . . . . . . . . . . . . . . . . . . . . . . . . 1 . 3 . Fabnet Peak Effective % . | . . . . . . . . . . . . . . . . . . . . . . . . . . . . . . . . . Robots Rewired 16 | . . . . . . . . . . . . 10 . . . . . . . . . . 2 . . . 4 . . . . . Allies Hacked . | . . . . . . . . . . . . . . . . . . . . . . . . . . . . . . . . . Hacks Repelled . | . . . . . . . . . . . . . . . . . . . . . . . . . . . . . . . . . Allies | -11 -10 -10 -9 -9 -8 -7 -7 -7 -7 -6 -6 -6 -6 -6 -6 -5 -5 -5 -5 -4 -4 -4 -4 -4 -3 -3 -3 -3 -2 -2 -1 -1 -------- Run | Yrd Mat Min Mat Min Mat Fac Low Low Zio Pro Fac Ext Cet Arc Hub Fac Upp Upp Zhi Pro Fac Upp Upp War Pro Res Arm Lab Res Tes Acc Com Total Allies 38 | . . . . . . . . . . . . 21 5 . . . . . . . . . 2 . . . 4 . . . 3 3 Largest Group 10 | . . . . . . . . . . . . 7 10 5 5 5 . . . . . . 2 2 . . 4 . . . 3 3 Highest-Rated Group 749 | . . . . . . . . . . . . 314 749 423 423 423 . . . . . . 60 60 . . 188 . . . 379 376 Highest-Rated Ally 159 | . . . . . . . . . . . . 159 159 96 96 96 . . . . . . 30 30 . . 47 . . . 135 132 Total Orders 3 | . . . . . . . . . . . . . . . . . . . . . . . . . 1 1 . . . . . 1 EXPLORE 3 | . . . . . . . . . . . . . . . . . . . . . . . . . 1 1 . . . . . 1 Ally Attacks 222 | . . . . . . . . . . . . 59 37 15 14 67 . . . . . . . 3 . . 9 . . . 14 4 Total Damage 7718 | . . . . . . . . . . . . 1267 1421 383 562 2945 . . . . . . . . . . 192 . . . 730 218 Kills 51 | . . . . . . . . . . . . 6 7 3 6 24 . . . . . . . . . . 1 . . . 4 . Allies Corrupted 1 | . . . . . . . . . . . . 1 . . . . . . . . . . . . . . . . . . . . Allies Melted 3 | . . . . . . . . . . . . 1 . . . . . . . . . . . . . . . . 2 . . . Intel | -11 -10 -10 -9 -9 -8 -7 -7 -7 -7 -6 -6 -6 -6 -6 -6 -5 -5 -5 -5 -4 -4 -4 -4 -4 -3 -3 -3 -3 -2 -2 -1 -1 ------- Run | Yrd Mat Min Mat Min Mat Fac Low Low Zio Pro Fac Ext Cet Arc Hub Fac Upp Upp Zhi Pro Fac Upp Upp War Pro Res Arm Lab Res Tes Acc Com Active Infowar (turns) 14181 | 5 180 . . . 322 . 240 446 . 402 817 913 . 1 222 157 854 885 302 609 391 838 569 125 674 1562 879 325 1823 136 495 9 Optics 4156 | . . . . . . . . . . . . . . . . . . . . . . . . . . 1408 879 325 1544 . . . Sensors 8574 | . . . . . . . . . . . 449 105 . . . 98 854 885 302 609 391 838 569 125 674 745 386 1 906 134 495 8 IFF 129 | . . . . . . . . . . . . . . . . . . . . . . . . . . . . . . . 120 9 Terrain 1378 | . . . . . . . 240 446 . 400 292 . . . . . . . . . . . . . . . . . . . . . Seismic 3388 | 5 180 . . . 322 . 238 375 . 402 678 808 . 1 222 157 . . . . . . . . . . . . . . . . Machine Analysis 339 | . . . . . . . . . . . 339 . . . . . . . . . . . . . . . . . . . . . Jamming 1182 | . . . . . . . . . . . . . . . . . . . . . 51 . . . . 767 159 . 2 . 203 . ECM 2 | . . . . . . . . . . . . . . . . . . . . . . . . . . . . . . 2 . . Robot Analysis Total 4 | . . . . . . . . . . . . . . . . . . . 4 . . . . . . . . . . . . . Derelict Logs Recovered 9 | . . . . . . . 2 1 1 . . . . . . . 1 1 . 1 . 1 1 . . . . . . . . . Drone Launches 5 | . . . . . . . . . . . . . . . . . . . . . . . . . 2 1 . . . . . 2 Drone Recoveries 1 | . . . . . . . . . . . . . . . . . . . . . . . . . 1 . . . . . . . Exploration | -11 -10 -10 -9 -9 -8 -7 -7 -7 -7 -6 -6 -6 -6 -6 -6 -5 -5 -5 -5 -4 -4 -4 -4 -4 -3 -3 -3 -3 -2 -2 -1 -1 ------------- Run | Yrd Mat Min Mat Min Mat Fac Low Low Zio Pro Fac Ext Cet Arc Hub Fac Upp Upp Zhi Pro Fac Upp Upp War Pro Res Arm Lab Res Tes Acc Com Turns Passed 30550 | 65 437 226 557 80 859 1220 1567 873 1051 402 871 2169 752 109 222 1344 904 885 316 614 569 840 751 1101 762 1562 879 325 1904 1498 776 4060 Spaces Moved 16169 | 45 151 119 285 44 408 769 866 478 859 205 418 842 239 51 131 721 557 536 159 356 258 488 411 646 320 864 360 161 1078 759 396 2189 Core 5 | 4 . . . . . . . . . . . . . . . . . . . . . . . . . . . . . . . 1 Treads 10283 | . . . . . . . . . . . . 273 239 51 131 721 557 536 159 356 258 488 411 646 320 864 360 161 1078 759 396 1519 Legs 5142 | 41 151 119 285 44 408 769 866 478 859 205 418 498 . . . . . . . . . . . . . . . . . . . 1 Wheels 739 | . . . . . . . . . . . . 71 . . . . . . . . . . . . . . . . . . . 668 Hover . | . . . . . . . . . . . . . . . . . . . . . . . . . . . . . . . . . Flight . | . . . . . . . . . . . . . . . . . . . . . . . . . . . . . . . . . Fastest Speed 50 | 50 120 190 120 120 120 125 127 115 117 117 117 110 160 160 160 160 160 160 160 160 160 160 160 160 160 155 145 145 145 151 151 130 Average Speed 159 | 113 145 190 140 120 153 132 168 170 117 176 171 200 209 160 160 160 160 160 160 160 160 160 160 160 224 157 147 145 146 151 151 162 Slowest Speed 3650 | 120 190 190 190 120 190 190 190 192 117 192 345 345 320 160 160 160 160 160 160 160 160 160 160 160 240 240 155 145 151 160 151 3650 Overloaded Moves . | . . . . . . . . . . . . . . . . . . . . . . . . . . . . . . . . . Propulsion Burnouts . | . . . . . . . . . . . . . . . . . . . . . . . . . . . . . . . . . Robots Hopped 3 | . . . . . . . . . 3 . . . . . . . . . . . . . . . . . . . . . . . Potential Cave-ins 3 | . . . . . . . . . . . . . . . . . . . . . . . . . . . . . 2 . 1 . Cave-ins Triggered . | . . . . . . . . . . . . . . . . . . . . . . . . . . . . . . . . . Teleports 1 | . . . . . . . . . . . . . . . . . . . . . . . . . . . 1 . . . . . Exploration Rate (%) 49 | 3 34 20 28 11 41 27 81 69 83 41 18 85 56 69 18 27 69 62 60 55 13 61 57 85 52 34 36 95 53 90 12 78 Regions Visited 32 Branch Regions 22 Pre-discovered Areas 4 | . . . . . . . . . 1 . . . . . . . . . 3 . . . . . . . . . . . . . Known Exits Taken 15 | . . . . . 1 1 . . . . 1 . . . . 1 1 1 1 1 1 1 1 . . 1 . 1 1 . 1 . Unknown Exits Taken 17 | 1 1 1 1 1 . . 1 1 1 1 . 1 1 1 1 . . . . . . . . 1 1 . 1 . . 1 . . Scrap Searched 21 | . . . . . . . 4 8 4 . . . . . . . 1 1 . 2 . 1 . . . . . . . . . . Spaces Dug 224 | . . . . . . . 31 . . 7 5 1 2 . 1 41 9 4 . 52 2 14 8 . 9 2 1 . 15 7 8 5 Terrain Destroyed 1474 | . . . . . . 14 178 . . 10 8 25 17 2 2 85 11 4 . 55 56 62 86 3 132 108 190 2 307 47 40 30 Melee . | . . . . . . . . . . . . . . . . . . . . . . . . . . . . . . . . . Projectile 319 | . . . . . . . . . . 10 8 16 17 2 2 51 11 4 . 14 12 16 21 3 11 16 23 2 21 27 14 18 AOE 1125 | . . . . . . 14 178 . . . . 9 . . . 34 . . . 41 44 45 65 . 121 88 166 . 286 20 14 . Terrain Rammed . | . . . . . . . . . . . . . . . . . . . . . . . . . . . . . . . . . Walls Destroyed . | . . . . . . . . . . . . . . . . . . . . . . . . . . . . . . . . . Machines Disabled . | . . . . . . . . . . . . . . . . . . . . . . . . . . . . . . . . . Actions | -11 -10 -10 -9 -9 -8 -7 -7 -7 -7 -6 -6 -6 -6 -6 -6 -5 -5 -5 -5 -4 -4 -4 -4 -4 -3 -3 -3 -3 -2 -2 -1 -1 --------- Run | Yrd Mat Min Mat Min Mat Fac Low Low Zio Pro Fac Ext Cet Arc Hub Fac Upp Upp Zhi Pro Fac Upp Upp War Pro Res Arm Lab Res Tes Acc Com Total 19444 | 53 360 120 363 67 551 901 918 508 902 226 516 1152 436 67 138 833 564 561 196 377 342 513 457 702 344 963 591 235 1275 1058 547 2608 Wait 727 | . 201 . 14 16 27 40 2 . 37 . 2 27 119 7 3 20 . 13 . . 19 . 2 6 1 . 42 33 1 22 62 11 Move 16130 | 44 150 118 284 43 407 768 865 477 852 204 417 841 238 50 130 720 556 535 158 355 257 487 410 645 319 863 359 160 1077 758 395 2188 Hop 3 | . . . . . . . . . 3 . . . . . . . . . . . . . . . . . . . . . . . Pick Up 185 | 1 3 1 7 3 15 11 4 5 3 . 10 12 10 . . 13 . 3 3 1 4 1 1 7 1 3 9 6 16 12 5 15 Fast Attach 188 | 7 . . 4 . 3 2 . 2 . . 7 24 11 . . 9 . . 7 1 2 1 1 8 . 9 7 3 16 19 5 40 Attach 85 | . . . 1 . 5 1 4 3 . . 3 7 . . . . . 2 1 . 3 1 2 3 1 3 3 2 11 6 8 15 Detach 63 | . . . 1 . . . . . . . 3 7 . . . 4 . . 1 1 . 1 2 6 . 4 . 1 4 9 5 14 Swap 249 | . 2 . 6 . 14 13 7 3 4 3 17 17 5 1 2 8 2 2 3 5 16 4 9 6 4 11 38 3 22 7 5 10 Drop 276 | . . 1 4 2 19 13 1 3 3 . 18 20 24 . . 16 . 3 9 1 5 . . 12 . 10 16 8 23 18 4 43 Fire 1297 | 1 4 . 38 3 61 45 35 15 . 19 38 75 29 9 3 41 5 3 13 13 36 17 17 9 18 60 86 19 105 205 58 217 Melee . | . . . . . . . . . . . . . . . . . . . . . . . . . . . . . . . . . Ram . | . . . . . . . . . . . . . . . . . . . . . . . . . . . . . . . . . Kick 8 | . . . 4 . . 3 . . . . 1 . . . . . . . . . . . . . . . . . . . . . Crush 15 | . . . . . . . . . . . . 1 . . . 2 . . . . . 1 8 . . . . . . 2 . 1 Escape Stasis 19 | . . . . . . 5 . . . . . 14 . . . . . . . . . . . . . . . . . . . . Rewire 166 | . . . . . . . . . . . . 90 . . . . 1 . 1 . . . 5 . . . 31 . . . . 38 Trap . | . . . . . . . . . . . . . . . . . . . . . . . . . . . . . . . . . Miscellaneous 33 | . . . . . . . . . . . . 17 . . . . . . . . . . . . . . . . . . . 16 Route ------- -11/Scrapyard -10/Materials (discovered 2 exits: *Mat / [*Min]) -10/Mines -9/Materials -9/Mines -8/Materials (discovered 3 exits: *Fac x3) -7/Factory (discovered 3 exits: *Fac / *Low x2) -7/Lower Caves -7/Lower Caves -7/Zion -6/Proximity Caves -6/Factory (discovered 3 exits: *Fac / *Low / *Ext) -6/Extension (discovered 2 exits: *Fac / *Cet) -6/Cetus (discovered 2 exits: *Fac / *Arc) -6/Archives (discovered 2 exits: *Hub x2) -6/Hub_04(d) -5/Factory (discovered 4 exits: *Fac x2 / *Upp x2) -5/Upper Caves -5/Upper Caves -5/Zhirov -4/Proximity Caves -4/Factory (discovered 2 exits: *Upp x2) -4/Upper Caves -4/Upper Caves (discovered 2 exits: *Res / *War) -4/Warlord -3/Proximity Caves -3/Research (discovered 2 exits: Res / *Arm) -3/Armory -3/Lab -2/Research (discovered 3 exits: *Acc x2 / *Tes) -2/Testing -1/Access (discovered 2 exits: Sur / *Com) -1/Command (discovered 2 exits: *Sur x2) To Epsilon Eridani History --------- Turn | Location | Event 3 | -11/Scrapyard | Discovered new exit (range 16) 66 | -11/Scrapyard | Entered Materials 124 | -10/Materials | Discovered new exit (range 15) 174 | -10/Materials | Discovered new exit (range 16) 305 | -10/Materials | Build established: Mutant 503 | -10/Materials | Entered Mines 686 | -10/Mines | Found a hidden stash of uninstalled traps 702 | -10/Mines | Discovered new exit (range 15) 705 | -10/Mines | Assembled infested the area 710 | -10/Mines | Assisted by a Guerilla fighting off Assembled 729 | -10/Mines | Entered Materials 729 | -9/Materials | Evolved 2 slots: Propulsion x1, Weapon x1 1065 | -9/Materials | Build established: Gunner 1243 | -9/Materials | Discovered new exit (range 9) 1286 | -9/Materials | Entered Mines 1294 | -9/Mines | Discovered new exit (range 12) 1366 | -9/Mines | Entered Materials 1366 | -8/Materials | Evolved 2 slots: Utility x2 1662 | -8/Materials | Build established: Tank 1934 | -8/Materials | Identified exit to Factory 1998 | -8/Materials | Build established: Gunner 2225 | -8/Materials | Entered Factory 2225 | -7/Factory | Evolved 2 slots: Propulsion x1, Utility x1 2620 | -7/Factory | Build established: Tank 2748 | -7/Factory | Discovered new exit (range 12) 3143 | -7/Factory | Discovered new exit (range 13) 3152 | -7/Factory | Identified exit to Lower Caves 3445 | -7/Factory | Entered Lower Caves 3446 | -7/Lower Caves | Encountered a Warlord checkpoint 3900 | -7/Lower Caves | Spotted B-75 Beast 4026 | -7/Lower Caves | System corruption reached 10% 4590 | -7/Lower Caves | Destroyed B-75 Beast 4741 | -7/Lower Caves | Learned 12 Factory zone layouts 4815 | -7/Lower Caves | Learned Factory trap positions 4999 | -7/Lower Caves | Discovered new exit (range 5) 5012 | -7/Lower Caves | Entered another Lower Caves area 5066 | -7/Lower Caves | Build established: Scavenger-Gunner 5334 | -7/Lower Caves | Learned Factory stockpile data 5762 | -7/Lower Caves | Discovered new exit (range 9) 5763 | -7/Lower Caves | Build established: Gunner 5885 | -7/Lower Caves | Entered Zion 5959 | -7/Zion | Discovered new exit (range 14) 5985 | -7/Zion | Visited the Megawrench Repair Shop 6015 | -7/Zion | Megawrench repaired 12 parts 6047 | -7/Zion | System corruption cleaned by Quarantine Array 6401 | -7/Zion | Learned Factory emergency access door positions 6689 | -7/Zion | Received a hallucinogenic algorithm 6720 | -7/Zion | Met Imprinter 6936 | -7/Zion | Entered Proximity Caves 7032 | -6/Proximity Caves | Spotted B-75 Beast 7239 | -6/Proximity Caves | Build established: Skirmisher 7319 | -6/Proximity Caves | Discovered new exit (range 3) 7338 | -6/Proximity Caves | Entered Factory 7338 | -6/Factory | Evolved 2 slots: Power x1, Utility x1 7339 | -6/Factory | Identified exit to Extension 7341 | -6/Factory | Loaded intel: 102 trap records 7524 | -6/Factory | Found Prototype Launcher 7613 | -6/Factory | Discovered new exit (range 12) 7860 | -6/Factory | Discovered new exit (range 6) 7870 | -6/Factory | Identified exit to Lower Caves 8209 | -6/Factory | Entered Extension 8230 | -6/Extension | Lost 4 parts (2n2w) 8488 | -6/Extension | Lost 3 parts (1u2w) 8565 | -6/Extension | Lost 5 parts (1p1n2u1w) 8882 | -6/Extension | Build established: Scavenger-Tank 8959 | -6/Extension | Rescued a captive Derelict 8960 | -6/Extension | Rescued a captive Derelict 9057 | -6/Extension | Rescued a captive Derelict 9137 | -6/Extension | Rescued a captive Derelict 9138 | -6/Extension | Rescued a captive Derelict 9486 | -6/Extension | Spotted B-75 Beast 9491 | -6/Extension | Destroyed B-75 Beast 9504 | -6/Extension | Spotted B-75 Beast 9524 | -6/Extension | Allies destroyed B-75 Beast 9561 | -6/Extension | Lost 6 allies 9847 | -6/Extension | Rescued a captive Derelict 9895 | -6/Extension | Rescued a captive Derelict 9895 | -6/Extension | Rescued a captive Derelict 10118 | -6/Extension | Identified Rocket Array 10156 | -6/Extension | Rescued a captive Derelict 10157 | -6/Extension | Rescued a captive Derelict 10161 | -6/Extension | Lost 3 allies 10217 | -6/Extension | Rescued A7 10335 | -6/Extension | Discovered new exit (range 10) 10337 | -6/Extension | Discovered new exit (range 6) 10378 | -6/Extension | Entered Cetus 10378 | -6/Cetus | Accompanied by 6 allies (A7) 10383 | -6/Cetus | Acquired a Cetus Manufacturing Module code from A7 10408 | -6/Cetus | Spotted Cetus Guard 10409 | -6/Cetus | Spotted Cetus Guard 10412 | -6/Cetus | Spotted Cetus Guard 10412 | -6/Cetus | Allies destroyed Cetus Guard 10412 | -6/Cetus | Spotted Cetus Guard 10416 | -6/Cetus | Destroyed Cetus Guard 10421 | -6/Cetus | Allies destroyed Cetus Guard 10425 | -6/Cetus | Destroyed Cetus Guard 10541 | -6/Cetus | Started Cetus Manufacturing Module 10566 | -6/Cetus | Manufactured an Enhanced Grunt 10591 | -6/Cetus | Manufactured an Enhanced Grunt 10616 | -6/Cetus | Manufactured an Enhanced Grunt 10641 | -6/Cetus | Manufactured an Enhanced Grunt 10666 | -6/Cetus | Manufactured an Enhanced Grunt 10715 | -6/Cetus | Discovered new exit (range 15) 10757 | -6/Cetus | Spotted Cetus Guard 10757 | -6/Cetus | Spotted Cetus Guard 10760 | -6/Cetus | Spotted Cetus Guard 10760 | -6/Cetus | Spotted Cetus Guard 10767 | -6/Cetus | Allies destroyed Cetus Guard 10772 | -6/Cetus | Allies destroyed Cetus Guard 10777 | -6/Cetus | Destroyed Cetus Guard 10784 | -6/Cetus | Allies destroyed Cetus Guard 10791 | -6/Cetus | Discovered new exit (range 16) 10803 | -6/Cetus | Met Revision 17 10828 | -6/Cetus | System corruption reached 10% 10990 | -6/Cetus | Murdered A7 10998 | -6/Cetus | Extracted ID and sensor layout for unrecognized location from A7's data core 11008 | -6/Cetus | Found Prototype Protection 11008 | -6/Cetus | Identified Med. Regenerative Plating 11128 | -6/Cetus | Security sweep announced 11130 | -6/Cetus | Entered Archives 11130 | -6/Archives | Accompanied by 5 allies 11186 | -6/Archives | Unable to access archive contents 11189 | -6/Archives | Discovered new exit (range 16) 11204 | -6/Archives | Discovered new exit (range 16) 11239 | -6/Archives | Entered Hub_04(d) 11239 | -6/Hub_04(d) | Accompanied by 5 allies 11433 | -6/Hub_04(d) | Discovered new exit (range 3) 11461 | -6/Hub_04(d) | Entered Factory 11461 | -5/Factory | Accompanied by 5 allies 11461 | -5/Factory | Evolved 2 slots: Propulsion x2 12034 | -5/Factory | Identified exit to Upper Caves 12243 | -5/Factory | Repaired Broken Centrium Heavy Treads? 12293 | -5/Factory | Discovered new exit (range 11) 12593 | -5/Factory | Discovered new exit (range 15) 12661 | -5/Factory | First assault squad dispatched 12805 | -5/Factory | Entered Upper Caves 12821 | -5/Upper Caves | Learned Factory security intel 13144 | -5/Upper Caves | Build established: Scavenger-Gunner 13535 | -5/Upper Caves | Discovered new exit (range 5) 13540 | -5/Upper Caves | Identified exit to Upper Caves 13709 | -5/Upper Caves | Entered another Upper Caves area 14346 | -5/Upper Caves | Learned Factory terminal intel 14429 | -5/Upper Caves | Build established: Scavenger-Tank 14452 | -5/Upper Caves | Discovered new exit (range 8) 14532 | -5/Upper Caves | Identified exit to Zhirov 14594 | -5/Upper Caves | Entered Zhirov 14596 | -5/Zhirov | Discovered new exit (range 3) 14625 | -5/Zhirov | Met Zhirov 14660 | -5/Zhirov | Learned location of Quarantine (-3) 14660 | -5/Zhirov | Learned location of Testing (-2) 14660 | -5/Zhirov | Learned location of Command (-1) 14670 | -5/Zhirov | Zhirov requested help retrieving the SGEMP Prototype 14694 | -5/Zhirov | Found Alien Artifact 14694 | -5/Zhirov | Identified Integrated Reactor 14694 | -5/Zhirov | Installed Integrated Reactor, increased core energy generation (+10) 14718 | -5/Zhirov | Found Alien Artifact 14898 | -5/Zhirov | Build established: Scavenger-Mutant 14906 | -5/Zhirov | Identified exit to Proximity Caves 14910 | -5/Zhirov | Entered Proximity Caves 15205 | -4/Proximity Caves | Build established: Scavenger-Tank 15349 | -4/Proximity Caves | Found DCF Scrap (15 items) 15442 | -4/Proximity Caves | Discovered new exit (range 3) 15516 | -4/Proximity Caves | Identified exit to Factory 15524 | -4/Proximity Caves | Entered Factory 15524 | -4/Factory | Evolved 2 slots: Utility x2 15526 | -4/Factory | Loaded intel: 26 terminal locations 15688 | -4/Factory | Identified exit to Upper Caves 15738 | -4/Factory | Garrison activated, responded to threat 16093 | -4/Factory | Entered Upper Caves 16409 | -4/Upper Caves | Build established: Hacker-Tank 16484 | -4/Upper Caves | Encountered a Warlord checkpoint 16708 | -4/Upper Caves | Found Alien Artifact 16708 | -4/Upper Caves | Identified Dimensional Node Initializer 16708 | -4/Upper Caves | Initialized slip node 16765 | -4/Upper Caves | Discovered new exit (range 11) 16867 | -4/Upper Caves | Learned location of 1 exit from Research 16928 | -4/Upper Caves | Identified exit to Upper Caves 16933 | -4/Upper Caves | Entered another Upper Caves area 16957 | -4/Upper Caves | Attracted the attention of an 0b10 outpost 17011 | -4/Upper Caves | Destroyed 13 combat bots 17035 | -4/Upper Caves | Discovered new exit (range 9) 17379 | -4/Upper Caves | Discovered new exit (range 15) 17402 | -4/Upper Caves | Identified exit to Warlord 17456 | -4/Upper Caves | Build established: Hacker-Gunner 17528 | -4/Upper Caves | Learned 4 Research zone layouts 17543 | -4/Upper Caves | Attacked by a delusional Derelict stockpiling parts 17684 | -4/Upper Caves | Entered Warlord 17684 | -4/Warlord | Accompanied by 2 allies 17737 | -4/Warlord | System corruption cleaned by Quarantine Array 18175 | -4/Warlord | Build established: Hacker-Tank 18192 | -4/Warlord | Found Prototype Special Weapon 18195 | -4/Warlord | Found Prototype Special Weapon 18197 | -4/Warlord | Found Prototype Special Weapon 18339 | -4/Warlord | Visited the Vortex Lab 18351 | -4/Warlord | Warlord's base attacked by MAIN.C 18352 | -4/Warlord | Found Prototype Energy Cannon 18352 | -4/Warlord | Identified Vortex Driver 18356 | -4/Warlord | Found Prototype Energy Cannon 18356 | -4/Warlord | Identified Vortex Cannon 18429 | -4/Warlord | Found Prototype Reactor 18429 | -4/Warlord | Identified Vortex Chain Reactor 18453 | -4/Warlord | Found Prototype Processor 18453 | -4/Warlord | Identified Exp. Core Analyzer 18551 | -4/Warlord | Met Warlord 18646 | -4/Warlord | Spotted B-86 Titan 18701 | -4/Warlord | Warlord forces counterattacked 18716 | -4/Warlord | Spotted Executioner 18728 | -4/Warlord | Build established: Scavenger-Gunner 18763 | -4/Warlord | Discovered new exit (range 15) 18782 | -4/Warlord | Identified RU-N14's Throwing Claymores v3 (x3) 18785 | -4/Warlord | Entered Proximity Caves 18828 | -3/Proximity Caves | Lost 10 allies 18900 | -3/Proximity Caves | Spotter reported a threat 18959 | -3/Proximity Caves | Found Imp. Powered Armor 19077 | -3/Proximity Caves | Build established: Scavenger-Tank 19131 | -3/Proximity Caves | Spotter reported a threat 19525 | -3/Proximity Caves | Discovered new exit (range 5) 19547 | -3/Proximity Caves | Entered Research 19547 | -3/Research | Evolved 2 slots: Utility x2 19548 | -3/Research | Identified exit to Research 19549 | -3/Research | Identified exit to Armory 19747 | -3/Research | Revision forces began assault on 0b10 19768 | -3/Research | Met up with Revision 17++ 19889 | -3/Research | Identified Transdimensional Reconstructor 20183 | -3/Research | Build established: Scavenger-Gunner 20247 | -3/Research | Research terminal network offline 20271 | -3/Research | Found Prototype Launcher 20271 | -3/Research | Identified Adv. Micro-nuke Launcher 20768 | -3/Research | Spotted Striker 20811 | -3/Research | Spotted Striker 20823 | -3/Research | Spotted Striker 20828 | -3/Research | Destroyed Striker 20879 | -3/Research | Spotted Striker 20889 | -3/Research | Destroyed Striker 20894 | -3/Research | Destroyed Striker 21055 | -3/Research | Spotted Striker 21079 | -3/Research | Destroyed Striker 21109 | -3/Research | Entered Armory 21213 | -3/Armory | Energy Cycler disabled 21554 | -3/Armory | Build established: Gunner 21699 | -3/Armory | P-80 Master assimilated allied Veteran 8a 21735 | -3/Armory | Lost 3 allies 21756 | -3/Armory | Destroyed 21 combat bots 21859 | -3/Armory | First assault squad dispatched 21861 | -3/Armory | Destroyed 8 combat bots 21928 | -3/Armory | Found Fusion Bomb Launcher 21930 | -3/Armory | Found Fusion Bomb Launcher 21985 | -3/Armory | Warped through subspace to slip node 21985 | -3/Armory | Discovered new exit (range 1) 21988 | -3/Armory | Entered Lab 21990 | -3/Lab | Discovered exit to Research (range 9) 22006 | -3/Lab | Hidden lab's door opened automatically 22006 | -3/Lab | Sensor layout match revealed 22007 | -3/Lab | Gained access to the hidden lab's interior 22045 | -3/Lab | Found Transdimensional Reconstructor 22055 | -3/Lab | Found Integrated Reactor 22055 | -3/Lab | Installed Integrated Reactor, increased core energy generation (+10) 22070 | -3/Lab | Found Alien Artifact 22131 | -3/Lab | Found Prototype Hackware 22141 | -3/Lab | Found Prototype Protection 22160 | -3/Lab | Found Prototype Energy Gun 22170 | -3/Lab | Detected by scanners 22175 | -3/Lab | Found Prototype Energy Cannon 22175 | -3/Lab | Identified Warp Cannon 22193 | -3/Lab | Confronted by A5 22203 | -3/Lab | System corruption reached 10% 22218 | -3/Lab | Destroyed A5 22238 | -3/Lab | Unable to decrypt terminal 22271 | -3/Lab | Found Alien Artifact 22301 | -3/Lab | Unable to decrypt terminal 22313 | -3/Lab | Entered Research 22313 | -2/Research | Warlord forces began assault on 0b10 22313 | -2/Research | Evolved 2 slots: Weapon x2 22314 | -2/Research | Identified exit to Testing 22423 | -2/Research | Research machine network offline 22441 | -2/Research | Spotted B-90 Cyclops 22636 | -2/Research | Spotted YE-4IL(L) 22757 | -2/Research | Borebot progress halted 22777 | -2/Research | Borebot progress halted 22837 | -2/Research | Found Exp. Core Analyzer 22909 | -2/Research | Identified Hyp. EM Gauss Rifle 22917 | -2/Research | Spotted Striker 22918 | -2/Research | Spotted Striker 22950 | -2/Research | Borebot progress halted 22963 | -2/Research | Met up with Warlord 23052 | -2/Research | Spotted Striker 23078 | -2/Research | Destroyed Striker 23097 | -2/Research | Build established: Scavenger-Gunner 23115 | -2/Research | Spotted Striker 23118 | -2/Research | Spotted Striker 23143 | -2/Research | Spotted Striker 23145 | -2/Research | Spotted Striker 23151 | -2/Research | Destroyed Striker 23166 | -2/Research | Met DD-05H 23173 | -2/Research | Spotted Striker 23173 | -2/Research | Spotted Striker 23225 | -2/Research | Spotted Executioner 23238 | -2/Research | Discovered new exit (range 10) 23273 | -2/Research | Spotted Executioner 23291 | -2/Research | Destroyed Executioner 23305 | -2/Research | Destroyed Executioner 23379 | -2/Research | Lost 3 parts (1p1u1w) 23636 | -2/Research | Spotted Striker 23638 | -2/Research | Spotted Striker 23645 | -2/Research | Destroyed Striker 23767 | -2/Research | Spotted Executioner 23769 | -2/Research | Spotted Striker 23772 | -2/Research | Destroyed Executioner 23774 | -2/Research | Destroyed Striker 23797 | -2/Research | Discovered new exit (range 12) 23810 | -2/Research | Found Exp. Targeting Computer 23811 | -2/Research | Destroyed 7 combat bots 23815 | -2/Research | Given Cave Seal Controls access code 23857 | -2/Research | Spotted Tracker 23858 | -2/Research | Spotted Tracker 23858 | -2/Research | Spotted Tracker 23867 | -2/Research | Destroyed Tracker 23870 | -2/Research | Spotted Combat Programmer 23872 | -2/Research | Spotted Combat Programmer 23873 | -2/Research | Destroyed Tracker 23875 | -2/Research | Spotted Combat Programmer 23885 | -2/Research | Destroyed Tracker 23891 | -2/Research | System corruption reached 10% 23900 | -2/Research | Destroyed Combat Programmer 23913 | -2/Research | Identified Hvy. Regenerative Plating 23918 | -2/Research | Destroyed Combat Programmer 23924 | -2/Research | Destroyed Combat Programmer 23942 | -2/Research | Found Exp. Targeting Computer 23948 | -2/Research | Lost 8 parts (1n3u4w) 24217 | -2/Research | Entered Testing 24349 | -2/Testing | Identified Quantum Router 24408 | -2/Testing | Discovered new exit (range 4) 24430 | -2/Testing | Found Quantum Capacitor 24494 | -2/Testing | Found Prototype Energy Gun 24553 | -2/Testing | Found Prototype Device 24553 | -2/Testing | Identified 2N-1CE's Frost Array 24650 | -2/Testing | Build established: Hacker-Gunner 24747 | -2/Testing | Found Prototype Processor 24747 | -2/Testing | Identified Spectral Analyzer 24759 | -2/Testing | Found Prototype Device 24759 | -2/Testing | Identified Adv. Particle Accelerator 24793 | -2/Testing | Spotted Striker 24796 | -2/Testing | Spotted Striker 24798 | -2/Testing | Destroyed Striker 24799 | -2/Testing | Spotted Alpha 7 24806 | -2/Testing | Destroyed Striker 24818 | -2/Testing | Destroyed Alpha 7 24832 | -2/Testing | Scanned by Researcher 24858 | -2/Testing | Found Prototype Processor 24858 | -2/Testing | Identified Exp. Target Analyzer 24861 | -2/Testing | Found Prototype Device 24861 | -2/Testing | Identified Exp. ECM Suite 24927 | -2/Testing | Stole the SGEMP Prototype 24937 | -2/Testing | Found Exp. Targeting Computer 25030 | -2/Testing | Build established: Scavenger-Gunner 25035 | -2/Testing | Destroyed 12 combat bots 25044 | -2/Testing | Found Prototype Launcher 25044 | -2/Testing | Identified Gui. Micro-nuke Launcher 25099 | -2/Testing | Identified Core Regenerator 25099 | -2/Testing | Identified Core Reset Matrix 25099 | -2/Testing | Identified Warp Gun 25343 | -2/Testing | Found Prototype Ballistic Cannon 25421 | -2/Testing | Intercept squad dispatched 25428 | -2/Testing | Spotted Tracker 25430 | -2/Testing | Spotted Tracker 25434 | -2/Testing | Destroyed Tracker 25440 | -2/Testing | Destroyed Tracker 25445 | -2/Testing | Spotted Combat Programmer 25452 | -2/Testing | Spotted Combat Programmer 25455 | -2/Testing | Destroyed Combat Programmer 25467 | -2/Testing | First assault squad dispatched 25467 | -2/Testing | Destroyed Combat Programmer 25585 | -2/Testing | Warp Cannon suddenly broke down 25715 | -2/Testing | Entered Access 25715 | -1/Access | Evolved 2 slots: Power x1, Weapon x1 25716 | -1/Access | Delivered the SGEMP Prototype to Zhirov 25716 | -1/Access | Zhirov transferred Access data 25717 | -1/Access | Loaded intel: 128 machine locations 25717 | -1/Access | Loaded intel: 91 trap records 25717 | -1/Access | Identified exit to Surface 25717 | -1/Access | Discovered exit to Surface (range 47) 25717 | -1/Access | Identified exit to Command 25717 | -1/Access | Discovered exit to Command (range 145) 25838 | -1/Access | Zhirov warped through subspace 25982 | -1/Access | Energy Cycler disabled 25992 | -1/Access | Found Prototype Device 25992 | -1/Access | Identified Exp. EM Shield 26046 | -1/Access | Identified Perforator 26347 | -1/Access | Build established: Scavenger-Executioner 26465 | -1/Access | First assault squad dispatched 26491 | -1/Access | Entered Command 26534 | -1/Command | Disengaged cave seal 26537 | -1/Command | Welcomed Warlord to Command 26620 | -1/Command | P-80 Master assimilated allied PZ-J2L(b) 26676 | -1/Command | Lost 3 allies 26741 | -1/Command | First assault squad dispatched 26795 | -1/Command | Build established: Scavenger-Gunner 26886 | -1/Command | Lost 4 allies 27115 | -1/Command | Lost 6 allies 27150 | -1/Command | Warlord commented on Warlord statues 27157 | -1/Command | Spotted M Guard 27157 | -1/Command | Spotted M Guard 27158 | -1/Command | Spotted Combat Programmer 27158 | -1/Command | Spotted Combat Programmer 27166 | -1/Command | System corruption reached 10% 27174 | -1/Command | Destroyed Combat Programmer 27181 | -1/Command | Destroyed Combat Programmer 27190 | -1/Command | Destroyed M Guard 27190 | -1/Command | All MAIN.C guards destroyed 27204 | -1/Command | Found Prototype Device 27204 | -1/Command | Identified AEGIS Remote Shield 27257 | -1/Command | Build established: Scavenger-Executioner 27286 | -1/Command | 0b10 Conduit disabled 27287 | -1/Command | Met MAIN.C 27289 | -1/Command | Warlord shut down involuntarily 27362 | -1/Command | Destroyed MAIN.C Shell 27363 | -1/Command | MAIN.C activated Command garrisons 27375 | -1/Command | Zhirov used SGEMP to disable MAIN.C 27377 | -1/Command | System corruption reached 30% 27407 | -1/Command | Lost 6 parts (1p1n2u2w) 27593 | -1/Command | Discovered exit to Surface (range 29) 27649 | -1/Command | Build established: Scavenger-Gunner 28127 | -1/Command | Found Prototype Reactor 28127 | -1/Command | Identified Singularity Reactor 28132 | -1/Command | Found Prototype Reactor 28132 | -1/Command | Identified Zero-point Reactor 28134 | -1/Command | Found Prototype Reactor 28134 | -1/Command | Identified Vortex Chain Reactor 28204 | -1/Command | Found Prototype Device 28204 | -1/Command | Identified Exp. System Purifier 28209 | -1/Command | Found Prototype Device 28209 | -1/Command | Identified Exp. Phase Shifter 28213 | -1/Command | Found Prototype Device 28213 | -1/Command | Identified Thermal Barrier 28304 | -1/Command | Found Exp. Targeting Computer 28306 | -1/Command | Found Exp. Target Analyzer 28428 | -1/Command | Build established: Executioner 29892 | -1/Command | Discovered exit to Surface (range 11) 30256 | -1/Command | Discovered exit to Surface (range 42) 30256 | -1/Command | Discovered exit to Surface (range 105) 30256 | -1/Command | Extracted map data and part IDs from MAIN.C's data core 30303 | -1/Command | Attacked by Warlord forces 30304 | -1/Command | Spotted 4P-G53(g) 30309 | -1/Command | Destroyed 4P-G53(g) 30365 | -1/Command | Spotted UJ-24W(L) 30548 | -1/Command | Used Core Regenerator, restored core integrity (+197) 30551 | *** | Escaped! Last Messages --------------- 30339_ HV Slug penetrates ZY-L1N. 30339_ ZY-L1N suffers critical hit (Destroy). 30339_ HV Slug penetrates Reinforced Barrier. 30339_ HV Slug penetrates ZY-L1N. 30350_ ZY-L1N destroyed. 30351_ Acquired 108 matter. 30357_ Acquired 67 matter. 30398_ ZZ-KVJ(g) destroyed. 30412_ Acquired 64 matter. 30472_ HV Slug penetrates Wall. 30475_ Wall collapses. 30475_ HV Slug penetrates Reinforced Barrier. 30475_ HV Slug penetrates Wall. 30476_ Wall collapses. 30478_ HV Slug penetrates Reinforced Barrier. 30532_ Acquired 30 matter. 30548_ Core integrity regenerated (+197). Map ----- +----------------------------------------------------+ | ?????????????????????????????????????????????????? | | ?????????????????????????????????????????????????? | | ?????????????????????????????????????????????????? | | ?????????????????????????????????????????????????? | | ?????????????????????????????????????????????????? | | ?????????????????????????????????????????????????? | | ?????????????????????????????????????????????????? | | ?????????????????????????????????????????????????? | | ?????????????????????????????????????????????????? | | ?????????????????????????????????????????????????? | | ?????????????????????????????????????????????????? | | ?????????????????????????????????????????????????? | | ?????????????????????????????????????????????????? | | ?????????????????????????????????????????????????? | | ?????????????????????????????????????????????????? | | ##################????????########???????????????? | | # #????????# % ################# | | # #????????# # ^ | | # #????????# # | | "" # "" #????????# # ^ ^ #### | | """" + """" #????????# # ^ ####" | | """" # """" #????????# + "" # ]]| | | "" #! "" #???????#""###### """" #] ]* | | # #?????######????# """" # !!** | | [# ] #?????# #?????# "" # != | | #############/########## @ #?????# ###### | | #?????# #????? | | #?????# #????? | | ##+##"###### ### #;#;#####?????# #????? | | #????# #?# ###;#########?# ### #????? | | ###### #?# # #?# #?# #????? | | # ! ## #?# # #?# #?# #????? | | ! # ## #?#==#= #?# #?# #????? | | ! +]! ## ###= # ### ### #????? | | #]! ## ^##"*=" ## ## #?#### | | #+#####!! ## ### "##"/######### ! ## #?#??? | | !## ## #?#[% [ ! ## #?#?## | | ## ## ###%* ! ## #?#?#" | | " ###+## ####### ###########/#### #?#?#" | | "" + #?????# #?# ## #?#?#" | | "" # #?????#!#?# [ ## #?#?#" | | " ###### #???### #?# ! ## #?#?#" | | #?#####+#####?# =#?# ## #?#?#" | | #?# #?# #?# " " ## #?#?#" | | ######?# ! #?# #?# "T" ! ## #?#?# | | ???????# ] #?# #?# """ ## #?#?# | | ???????# ! #?# #?######+####+## #?#?# | | ??????##########+### #?????# #?# #?#?#" | | ??????# # #?????# #?# #?#?#" | | ??????# # #?????# #?# #?#?# | +----------------------------------------------------+ Best States ------------- Heat Dissipation 152 Coolant Potential 65 Energy Generation 103 Energy Capacity 1100 Matter Stores 800 Matter Capacity 800 Sight Range 23 Robot Scan Range 18 Terrain Scan Range 16 Terrain Scan Density 210 Jamming Range 16 Power Amplification 30 Additional Mass Support 25 Base Temperature (-) 150 EM Shielding 4 Armor Coverage 1200 Resistance: KI 30 Weapon Shielding 66 Point Defense Rating 240 Weapon Cycling 25 Phase Shifting 20 Evasion (%) 63 Targeting Accuracy 24 Target Analysis 10 Core Analysis 12 Armor Integrity Analysis 30 Recoil Reduction 6 Matter Filtering 30 Particle Charging 50 Kinecelleration 40 Salvage Targeting 3 Offensive Hacking 24 Defensive Hacking 25 Item Schematics ----------------- Assault Drone Bay | -5/Zhirov | Free Exp. Heat Sink | -5/Zhirov | Free Exp. Optical Array | -5/Zhirov | Free Imp. Arc Thrower | -5/Zhirov | Free Exp. Weapon Shielding | -4/Factory | Hacked Exp. Targeting Computer | -4/Factory | Hacked Hyp. Gauss Rifle | -4/Factory | Hacked Cld. Antigrav System | -2/Testing | Archive Graviton Reactor | -2/Testing | Archive Exp. Actuator Array | -2/Testing | Archive Prc. Phase Gun | -2/Testing | Archive Enh. Armored Heavy Treads | -2/Testing | Archive Robot Schematics ------------------ T-07 Excavator | -2/Testing | Archive Fabricated ------------ Nothing Repaired ---------- Centrium Heavy Treads | 81% | -5/Factory | Broken Alien Tech Used ----------------- Integrated Reactor Dimensional Node Initializer Transdimensional Reconstructor Core Regenerator Achievements -------------- Corridor Of Doom No Explosion For You Sorry Old Pal Special Delivery Challenges ------------ None Game ------ Seed GatlingJunkDissipator Manual? 0 Play Time 04:28:31 Cumulative 124.1 hours Start 2025.08.20 @ 03:13:04 End 2025.08.20 @ 22:28:22 Sessions 4 Manual Loads 0 Difficulty Rogue Special Mode None Game No. 57 Rogue 57 Adventurer 0 Explorer 0 Win Type 0 Total 2 Types 1/0/1/0/0/0/0/0/0/0 Lore% 74 Gallery% 61 Achievement% 78 Wizard Run 0 Options --------- Layout 2 ASCII 0 Keyboard 1 Movement Vi Keybinds 0 Fullscreen 1 Font 28/SwanstonBold Map View 50x52 Zoom Use 0% Tactical HUD 1 Map Filters NONE Filters NONE Steam 1 RUN: 34e775c8-11ad-4837-abfb-38779ac930f3